Cogmind - Beta 16.1 @@@ ROGUE MODE // 2026.03.08 @ 20:27:10 Player: chebyrekser Result: Destroyed by P-80 Master with Gamma Rifle Performance ------------- Evolutions (9) 4500 Regions Visited (28) 5600 Robots Destroyed (619) 3095 Value Destroyed (35871) 35871 Prototype IDs (125) 2500 Alien Tech Used (3) 600 Bonus (40624) 40624 TOTAL SCORE: 92790 Bonus ------- Triggered High Security 1000 High Alert Combat Kills 25179 Follower Combat Kills 9446 Hunted by Unchained 500 Destroyed Unchained 1000 Delivered SUBCON Basin 2000 Registered with UFD 300 Met Optimus in HQ 500 Met Zhirov 300 Met Warlord at Base 500 MAIN.C Attacked Warlord 500 Built Enhanced Grunts 300 A7 Reached Mainframe 300 Met R17 at Cetus 500 Met R17 at Research 2000 Scanned by Researcher 500 Friendly Fire -4201 Cogmind --------- Core Integrity 0/1600 Matter 227/300 Energy 1400/1400 System Corruption 64% Temperature Cool (0) Movement Core (1750) Ox34 Location -1/Command Parts ------- > --- POWER (3) -------- Hybrid Graviton Reactor > --- PROPULSION (6) --- (None) > --- UTILITY (10) ----- Huge Storage Unit > --- WEAPON (6) ------- Concept Plasma Driver > --- INVENTORY (25) --- Reinforced Antimatter Reactor Medium Treads Flexi-carbon Leg Flexi-carbon Leg Advanced Coolant Injector Concept NT7 Matterbank (435) Experimental Reaction Control System Concept Antimissile System Advanced System Restoration Module High-powered Transdimensional Reconstructor Concept Lightning Penetrator Multirail Containment Facilitator (1) Peak State ------------ > --- POWER ------------ Experimental Antimatter Reactor Hybrid Graviton Reactor Concept Zero-point Core > --- PROPULSION ------- Centrium Heavy Treads High-density Centrium Heavy Treads High-density Centrium Heavy Treads > --- UTILITY ---------- 2N-1CE's Frost Array Concept Antigrav Storage Unit Experimental Sensor Array Advanced Signal Interpreter Experimental Core Analyzer Quantum Capacitor Concept RG22 Armor Concept RG22 Armor Experimental Force Field > --- WEAPON ----------- Concept Variable Chargecaster Concept Variable Chargecaster Cooled Proton Cannon Compact HERF Cannon Enhanced Nova Cannon Concept Plasma Driver > --- INVENTORY -------- Hybrid Graviton Reactor Concept Zero-point Core Experimental Heavy Siege Treads Experimental Heavy Siege Treads Advanced Coolant Injector Concept NT7 Matterbank Quantum Capacitor Advanced Transmission Jammer Experimental Weapon Shielding Experimental Weapon Shielding AEGIS Remote Shield Concept Antimissile System Transdimensional Reconstructor High-powered Transdimensional Reconstructor Concept Lightning Penetrator Phase Gun Concept Variable Chargecaster Potential Cannon Concept Plasma Driver Heavy Shock Bomb Launcher [Rating: 276] Favorites ----------- Power Quantum Reactor Engine Improved Ion Engine Power Core Concept Zero-point Core Reactor Quantum Reactor Propulsion Centrium Heavy Treads Treads Centrium Heavy Treads Leg Enhanced Biometal Leg Wheel Compact Wheel Utility Huge Storage Unit Device Experimental Sensor Array Storage Huge Storage Unit Processor Advanced Signal Interpreter Hackware Advanced Hacking Suite Protection Concept RG22 Armor Weapon 1B-0RG's Assimilator Energy Gun Beam Rifle Energy Cannon Subdweller Beam Cannon Ballistic Gun Assault Rifle Ballistic Cannon Enhanced Hardcell Cannon Launcher Heavy Shock Bomb Launcher Special Weapon Mining Laser Slashing Weapon Companion Sword Piercing Weapon Plasma Lance Special Melee Weapon 1B-0RG's Assimilator Build | -11 -10 -10 -9 -9 -6 -6 -6 -6 -6 -5 -5 -5 -5 -5 -5 -4 -4 -4 -4 -4 -3 -3 -3 -2 -2 -2 -1 -1 ------- Run | Yrd Mat Sub Rec Scr Fac Ext Cet Arc Hub Fac Was Fac Upp Upp War Pro Fac Upp Upp Zhi Pro Res Qua Res Tes Frg Acc Com Slots Evolved 18 | . . . . . 8 . . . . 2 . . . . . . 2 . . . . 2 . 2 . . 2 . Power 2 | . . . . . . . . . . . . . . . . . 1 . . . . . . 1 . . . . Propulsion 4 | . . . . . 2 . . . . 2 . . . . . . . . . . . . . . . . . . Utility 8 | . . . . . 2 . . . . . . . . . . . 1 . . . . 2 . 1 . . 2 . Weapon 4 | . . . . . 4 . . . . . . . . . . . . . . . . . . . . . . . Parts Attached 211 | 8 6 14 5 3 10 6 8 6 1 5 2 . . 1 7 . 1 . 2 1 . 8 3 17 15 24 32 26 Power 21 | 1 . 1 1 . . 1 1 . . . . . . . . . 1 . . . . 1 1 1 2 4 3 3 Engine 3 | 1 . 1 1 . . . . . . . . . . . . . . . . . . . . . . . . . Core 3 | . . . . . . 1 . . . . . . . . . . . . . . . . . . . 1 1 . Reactor 15 | . . . . . . . 1 . . . . . . . . . 1 . . . . 1 1 1 2 3 2 3 Propulsion 42 | 3 . 4 2 2 3 . 2 3 . . . . . . . . . . . . . 2 1 2 3 . 6 9 Treads 31 | 2 . 2 2 . 1 . 2 3 . . . . . . . . . . . . . 2 1 2 3 . 6 5 Leg 5 | . . 1 . . . . . . . . . . . . . . . . . . . . . . . . . 4 Wheel 6 | 1 . 1 . 2 2 . . . . . . . . . . . . . . . . . . . . . . . Hover . | . . . . . . . . . . . . . . . . . . . . . . . . . . . . . Flight . | . . . . . . . . . . . . . . . . . . . . . . . . . . . . . Utility 90 | 2 5 2 1 . 5 3 4 3 1 4 1 . . 1 5 . . . 2 1 . 4 . 6 6 13 11 10 Device 49 | 1 . 1 1 . 2 1 . 3 . 4 . . . 1 4 . . . 1 1 . 3 . 6 3 6 7 4 Storage 11 | 1 3 . . . . 1 1 . 1 . 1 . . . . . . . 1 . . . . . . 1 1 . Processor 6 | . . . . . 1 . . . . . . . . . 1 . . . . . . . . . 2 1 . 1 Hackware 3 | . . . . . . . . . . . . . . . . . . . . . . . . . . 1 2 . Protection 21 | . 2 1 . . 2 1 3 . . . . . . . . . . . . . . 1 . . 1 4 1 5 Artifact . | . . . . . . . . . . . . . . . . . . . . . . . . . . . . . Weapon 58 | 2 1 7 1 1 2 2 1 . . 1 1 . . . 2 . . . . . . 1 1 8 4 7 12 4 Energy Gun 10 | . . . 1 . . . . . . . . . . . 2 . . . . . . . . 1 1 4 1 . Energy Cannon 15 | . . 2 . . . . . . . 1 . . . . . . . . . . . . 1 4 2 3 2 . Ballistic Gun 17 | 2 . 4 . 1 . . . . . . 1 . . . . . . . . . . . . 3 . . 3 3 Ballistic Cannon 4 | . . . . . . . . . . . . . . . . . . . . . . . . . . . 4 . Launcher 5 | . . . . . . 1 . . . . . . . . . . . . . . . 1 . . 1 . 1 1 Special Weapon 4 | . 1 1 . . . 1 1 . . . . . . . . . . . . . . . . . . . . . Impact Weapon . | . . . . . . . . . . . . . . . . . . . . . . . . . . . . . Slashing Weapon 1 | . . . . . 1 . . . . . . . . . . . . . . . . . . . . . . . Piercing Weapon 1 | . . . . . . . . . . . . . . . . . . . . . . . . . . . 1 . Special Melee Weapon 1 | . . . . . 1 . . . . . . . . . . . . . . . . . . . . . . . Unidentified Prototypes 42 | . . . . . 2 . 2 . . 1 1 . . . 4 . . . . 2 . 2 . 5 7 7 6 3 Corrupted Parts 3 | . . . . . . . . 2 . . . . . . . . . . . . . . . . . . . 1 System Corruption 26 | . . . . . . . . 15 . . . . . . . . . . . . . . . . . . . 11 Parts Lost 61 | . . 5 1 . . . . . . . . . . . . . . . . . . 2 2 3 . 4 10 34 Power 10 | . . 1 . . . . . . . . . . . . . . . . . . . . 1 1 . 1 1 5 Propulsion 17 | . . 2 . . . . . . . . . . . . . . . . . . . 1 . 1 . . 3 10 Utility 22 | . . 1 1 . . . . . . . . . . . . . . . . . . 1 1 1 . 2 5 10 Weapon 12 | . . 1 . . . . . . . . . . . . . . . . . . . . . . . 1 1 9 Highest Loss Streak 20 | . . 3 1 . . . . . . . . . . . . . . . . . . 2 2 3 . 2 4 20 To Critical Strikes 1 | . . . . . . . . . . . . . . . . . . . . . . 1 . . . . . . Average Backups 19 | 4 17 19 4 15 23 23 21 19 19 20 21 20 21 21 20 20 19 19 19 20 20 20 21 21 22 21 21 21 Power 1 | 1 1 1 . . . . . . . . 1 1 1 1 1 1 1 1 1 1 1 1 1 1 1 1 2 2 Propulsion 2 | 2 4 3 . 3 8 7 5 3 4 3 3 2 2 2 2 2 2 2 2 2 2 1 1 1 1 1 1 3 Utility 8 | . 6 7 1 3 7 8 8 7 7 10 11 11 11 12 11 11 9 10 10 10 10 10 10 9 11 9 7 5 Weapon 4 | . 5 6 1 4 4 4 4 5 5 4 4 4 4 4 3 4 4 4 4 4 4 4 4 2 3 5 8 8 Tool/Special . | . . . . . . . . . . . . . . . . . . . . . . . . . . . . . Unused Backups 96 | . 3 22 . 10 3 . 13 2 1 3 . . . . 3 . . . . . . 3 2 5 4 8 4 10 Power 9 | . 1 2 . . . . . . . . . . . . 1 . . . . . . . . 1 . 3 . 1 Propulsion 18 | . . 2 . 2 2 . 8 . . . . . . . . . . . . . . . . . . . 1 3 Utility 37 | . 1 8 . 1 . . 2 1 1 2 . . . . 2 . . . . . . 3 2 . 4 5 1 4 Weapon 27 | . 1 9 . 6 1 . 3 1 . 1 . . . . . . . . . . . . . 4 . . 1 . Tool/Special 5 | . . 1 . 1 . . . . . . . . . . . . . . . . . . . . . . 1 2 Average Slot Usage (%) 73 | . 100 99 99 100 72 73 69 59 54 57 58 58 58 58 58 58 61 63 63 62 63 65 64 68 72 70 71 67 Engine 4 | . 14 13 14 14 6 5 . . . . . . . . . . . . . . . . . . . . . . Reactor 4 | . . . . . . . 4 6 6 5 5 5 5 5 5 5 9 10 10 10 10 9 8 6 8 7 6 8 Treads 14 | . 28 14 27 9 . . 3 13 13 17 17 17 17 17 17 17 15 15 15 15 15 14 13 12 12 12 11 11 Wheel 4 | . . 13 . 18 25 26 18 . . . . . . . . . . . . . . . . . . . . . Device 11 | . 2 11 13 14 10 8 . 6 7 10 8 10 10 10 7 5 9 9 9 9 9 17 17 17 17 12 14 15 Storage 7 | . 14 14 14 14 6 6 6 6 6 5 8 5 5 5 5 5 5 5 5 5 5 4 4 4 4 4 4 4 Processor 5 | . . . . . 3 6 6 6 6 5 5 5 5 5 8 11 10 10 10 10 10 9 9 6 6 9 6 4 Protection 2 | . 10 2 . . 4 3 12 5 . . . . . . . . . . . . . 1 1 1 . 2 8 8 Energy Gun 2 | . . . 13 14 . . . . . . . . . . . . . . . . . . . 1 3 3 1 1 Energy Cannon 5 | . . 15 14 12 . . . . . . . . . . . . . . . . . . 3 9 13 12 8 6 Ballistic Gun 2 | . 24 9 . 1 . . . . . . 1 . . . . . . . . . . . . 2 3 1 . 1 Slashing Weapon 2 | . . . . . 5 5 5 6 6 4 3 4 5 5 4 4 5 5 5 5 5 3 . . . . . . Special Melee Weapon 2 | . . . . . 5 6 6 6 6 5 5 5 5 5 5 5 5 5 5 5 5 4 4 1 . . . . Peak Build Rating 276 | 7 9 35 36 24 102 107 150 151 155 169 169 172 170 169 177 176 188 189 188 189 189 198 198 206 207 258 276 239 Average Rating 138 | 5 8 16 30 22 99 102 123 149 146 164 165 164 165 164 168 174 180 187 187 188 188 195 193 196 198 211 241 203 On Entrance 143 | . 7 9 35 19 24 102 107 150 150 146 167 166 170 169 164 173 175 188 188 188 187 188 196 197 196 204 258 234 Avg Prop Armor Cover (%) 12 | 3 . 12 . 13 8 . . . . . . . . . . . . . . . . . . . . . 6 . Naked Turns . | . . . . . . . . . . . . . . . . . . . . . . . . . . . . . Heaviest Build 228 | 14 91 102 104 99 154 161 186 186 161 161 163 167 167 167 174 174 197 197 191 191 197 205 208 215 212 214 191 228 Greatest Support 260 | 40 40 40 40 40 48 48 160 160 160 240 240 240 240 240 240 240 240 240 240 240 240 240 235 230 255 260 260 235 Greatest Overweight (x) 8 | 2 2 6 6 8 4 3 7 1 1 . . . . . . . . . . . . . . . 1 . . 5 Average Overweight (x) 1 | . . 4 2 5 3 3 2 1 . . . . . . . . . . . . . . . . . . . . Largest Inventory Capacity 25 | 8 25 25 25 25 25 25 25 25 25 25 25 25 25 25 25 25 25 25 25 25 25 25 25 25 25 25 25 25 Average Capacity 24 | 7 19 25 25 25 25 25 25 25 25 25 25 25 25 25 25 25 25 25 25 25 25 25 25 25 25 25 25 25 Most Carried 25 | 7 24 25 25 25 25 25 25 25 25 25 25 25 25 25 25 25 25 24 25 25 25 25 25 25 25 25 25 25 Average Carried 23 | 4 17 24 20 21 24 24 24 24 24 24 25 24 24 25 24 24 24 24 24 24 25 24 24 24 24 24 24 22 Final Capacity 25 | 8 25 25 25 25 25 25 25 25 25 25 25 25 25 25 25 25 25 25 25 25 25 25 25 25 25 25 25 25 Final Carried 25 | 7 24 25 25 25 25 25 25 25 25 25 25 25 25 25 25 25 24 24 25 25 25 25 25 25 25 25 25 13 Class Distribution -------------------- 37% | Scavenger-Mutant 20% | Mutant 16% | Scavenger-Assassin 5% | Scavenger-Executioner 5% | Scavenger-Tank 3% | Assassin Dominant Class ---------------- Mutant | -10/Materials Mutant | -10/Subcaves Scavenger-Mutant | -9/Recycling Scavenger-Mutant | -9/Scraptown Derelict-Mutant | -6/Factory Assassin | -6/Extension Commander-Mutant | -6/Cetus Scavenger-Mutant | -6/Archives Mutant | -6/Hub_04(d) Scavenger-Assassin | -5/Factory Scavenger-Mutant | -5/Waste Scavenger-Assassin | -5/Factory Scavenger-Assassin | -5/Upper Caves Scavenger-Assassin | -5/Upper Caves Scavenger-Mutant | -5/Warlord Scavenger-Mutant | -4/Proximity Caves Scavenger-Assassin | -4/Factory Scavenger-Mutant | -4/Upper Caves Scavenger-Mutant | -4/Upper Caves Scavenger-Mutant | -4/Zhirov Scavenger-Mutant | -3/Proximity Caves Scavenger-Assassin | -3/Research Infiltrator-Assassin | -3/Quarantine Executioner | -2/Research Scavenger-Executioner | -2/Testing Scavenger-Tank | -2/Protoforge Scavenger-Mutant | -1/Access Scavenger-Tank | -1/Command Resources | -11 -10 -10 -9 -9 -6 -6 -6 -6 -6 -5 -5 -5 -5 -5 -5 -4 -4 -4 -4 -4 -3 -3 -3 -2 -2 -2 -1 -1 ----------- Run | Yrd Mat Sub Rec Scr Fac Ext Cet Arc Hub Fac Was Fac Upp Upp War Pro Fac Upp Upp Zhi Pro Res Qua Res Tes Frg Acc Com Matter Collected 27335 | 328 517 667 99 280 1225 2879 1375 1354 759 514 881 291 140 70 1053 638 710 468 827 50 332 1965 2186 884 535 2104 2033 2171 Remotely 3113 | . . . . . . . . . . 236 . 30 . . 581 181 . . . . . 956 1129 . . . . . Salvage Created 36389 | 140 459 592 255 . 634 819 16 341 557 360 660 219 52 . . . 596 122 107 122 . 1075 558 1650 1200 4409 14281 7165 Parts 1307 | 11 23 44 10 . 36 25 1 24 15 15 26 12 1 . . . 33 3 3 1 . 60 15 65 58 175 400 251 Haulers Intercepted 4 | . 2 . . . . . . . . . . . . . . . . . . . . . . . . . 2 . Recyclers Shooed 13 | . 4 . . . 2 . . . . 1 . 1 . . . . . . . . . . 3 . 2 . . . Parts Field Recycled 3 | . . . . . . 3 . . . . . . . . . . . . . . . . . . . . . . Retrieved Matter 52 | . . . . . . 52 . . . . . . . . . . . . . . . . . . . . . . Parts Self-Destructed 87 | . . 19 . . . . . . . . . . 3 3 . 21 . 12 20 . 9 . . . . . . . Prevented 9 | . . . . . . . . . . . . . . . . . . 6 3 . . . . . . . . . Parts Restored 5 | . . . . . . . . . . . . . . . . . . . . . . . . . . 5 . . Faulty 5 | . . . . . . . . . . . . . . . . . . . . . . . . . . 5 . . Kills | -11 -10 -10 -9 -9 -6 -6 -6 -6 -6 -5 -5 -5 -5 -5 -5 -4 -4 -4 -4 -4 -3 -3 -3 -2 -2 -2 -1 -1 ------- Run | Yrd Mat Sub Rec Scr Fac Ext Cet Arc Hub Fac Was Fac Upp Upp War Pro Fac Upp Upp Zhi Pro Res Qua Res Tes Frg Acc Com Combat Hostiles Destroyed 462 | . 7 15 3 . 1 . . . . . . 3 . . . . 1 . . . . 11 4 15 11 73 188 130 Melee 6 | . . 1 . . 1 . . . . . . . . . . . 1 . . . . 1 . . . . 1 1 Guns 27 | . 7 1 . . . . . . . . . . . . . . . . . . . . 4 . . 4 . 11 Cannons 206 | . . 11 3 . . . . . . . . . . . . . . . . . . . . 10 9 38 100 35 AOE 134 | . . . . . . . . . . . . 3 . . . . . . . . . 7 . . . 16 47 61 Classes Destroyed 32 | 3 4 1 1 . 2 . 1 . . . 2 . . . . . 1 . 1 . . 4 . 2 1 7 2 . Worker 34 | 1 . . . . 7 2 . . 2 4 . 2 . . . . 2 . . . . 1 1 . 2 3 1 6 Builder 25 | . . . . . 1 4 . . . . . . . . . . 3 . . . . 2 . . . 4 11 . Tunneler 7 | 3 2 . . . 1 . . . . . . . . . . . . . . . . . . . . . 1 . Hauler 4 | . 2 . . . . . . . . . . . . . . . . . . . . . . . . . 2 . Recycler 33 | 1 1 . 1 . 3 4 . . 4 2 . 1 . . . . 3 . . . . . 3 3 1 . 3 3 Carrier 3 | . . . . . . . . . . . . . . . . . . . . . . . . . . . 2 1 Minesweeper 1 | . . . . . . . . . . . . . . . . . . . 1 . . . . . . . . . Mechanic 27 | . . . . . 1 . . . . . . . . . . . . . . . . . . . . 2 15 9 Operator 11 | . . . . . . . 1 9 . . . . . . . . . . . . . . . 1 . . . . Drone 7 | . . . . . . . . . . . . . . . . . . . . . . . . . . 7 . . Watcher 11 | . 1 . . . . . . . . 1 . . . . . . . . . . . . . 1 1 1 3 3 Swarmer 24 | . 3 2 . . 1 . . . . . . 2 . . . . . . . . . 2 . . . 4 . 10 Saboteur 16 | . . . . . . . . . . . . . . . . . . . . . . . . . . 1 7 8 Grunt 150 | . 4 . . . . . . . . . . 1 . . . . . . . . . 5 . 2 3 19 82 34 Brawler 31 | . . . . . . . . . . . . . . . . . . . . . . . . . . 5 15 11 Duelist 31 | . . . . . . . . . . . . . . . . . . . . . . 1 . . . 4 13 13 Protector 25 | . . . . . . . . . . . . . . . . . . . . . . . . . . 4 12 9 Researcher 2 | . . . . . . . . . . . . . . . . . . . . . . . . . . 2 . . Sentry 15 | . . . 3 . . . . . . . . . . . . . . . . . . . . 3 . 5 2 2 Hunter 28 | . . . . . . . . . . . . . . . . . . . . . . 1 . 2 . 3 17 5 Programmer 54 | . . . . . . . . . . . . . . . . . 1 . . . . . 4 4 6 8 14 17 Heavy 1 | . . . . . . . . . . . . . . . . . . . . . . . . 1 . . . . Q-Series 5 | . . . . . . . . . . . . . . . . . . . . . . . . 3 . . 2 . Behemoth 2 | . . . . . . . . . . . . . . . . . . . . . . . . . . . 1 1 Hotshot 2 | . . . . . . . . . . . . . . . . . . . . . . . . . . 2 . . Decapitator 7 | . . . . . . . . . . . . . . . . . . . . . . . . . . 7 . . Immortal 2 | . . . . . . . . . . . . . . . . . . . . . . . . . . 2 . . Investigator 4 | . . . . . . . . . . . . . . . . . . . . . . . . . . . 3 1 Striker 31 | . . . . . . . . . . . . . . . . . . . . . . 1 . . . . 17 13 Executioner 13 | . . . . . . . . . . . . . . . . . . . . . . 1 . . . . 5 7 Fortress 1 | . . . . . . . . . . . . . . . . . . . . . . . . . 1 . . . V-Series 2 | . . . . . . . . . . . . . . . . . . . . . . . . . . 2 . . Protovariant L 1 | . . . . . . . . . . . . . . . . . . . . . . . . . 1 . . . Subdweller 13 | . . 13 . . . . . . . . . . . . . . . . . . . . . . . . . . Decomposer 3 | . . . . . . . . . . . . . 2 . . . . 1 . . . . . . . . . . Packrat 1 | . . . . . . . . . . . . . . . . . . 1 . . . . . . . . . . Surgeon 1 | . . . . . . . . . . . 1 . . . . . . . . . . . . . . . . . Wasp 6 | . . . . . . . . . . . 6 . . . . . . . . . . . . . . . . . Thug 4 | . . . . . . . . 1 . . 3 . . . . . . . . . . . . . . . . . Butcher 1 | . . . . . . . . . . . 1 . . . . . . . . . . . . . . . . . Martyr 2 | . . . . . . . . . . . 2 . . . . . . . . . . . . . . . . . Revision 3 | . . . . . . . . . . . . . . . . . . . . . . 3 . . . . . . Best Kill Streak 54 | 2 3 2 2 . 2 2 . 3 2 3 . 3 . . . . 3 . 1 . . 5 4 5 3 22 54 24 Combat Bots Only 48 | . 3 2 2 . 1 . . . . . . 2 . . . . 1 . . . . 4 3 5 3 19 48 23 Max Kills in Single Turn 8 | 1 1 1 1 . 1 2 1 1 1 1 1 2 1 . . . 1 1 1 . . 4 1 1 1 3 4 8 Gunslinging . | . . . . . . . . . . . . . . . . . . . . . . . . . . . . . Exploded 7 | . . . . . . . . . . . . 2 . . . . . . . . . 3 . . . 2 3 7 Melee 1 | . . 1 . . 1 . . . . . . . . . . . 1 . . . . 1 . . . . 1 1 Uniques/NPCs Destroyed 1 | . . . . . . . . . . . . . . . . . . . . . . . . . . . 1 . DW-4LL (-1/Access) Combat | -11 -10 -10 -9 -9 -6 -6 -6 -6 -6 -5 -5 -5 -5 -5 -5 -4 -4 -4 -4 -4 -3 -3 -3 -2 -2 -2 -1 -1 -------- Run | Yrd Mat Sub Rec Scr Fac Ext Cet Arc Hub Fac Was Fac Upp Upp War Pro Fac Upp Upp Zhi Pro Res Qua Res Tes Frg Acc Com Hostile Shots Fired 2275 | . 35 58 18 . 3 53 5 . 2 8 . 14 . . 64 5 5 . . . 3 60 121 85 39 190 769 738 Missed 621 | . 10 19 3 . 1 22 3 . 1 1 . 5 . . 17 3 1 . . . . 21 31 16 5 52 201 209 Hits 1654 | . 25 39 15 . 2 31 2 . 1 7 . 9 . . 47 2 4 . . . 3 39 90 69 34 138 568 529 Melee 118 | . . . . . . . . . . . . . . . . . . . . . . 3 . . 13 14 7 81 Projectile 1536 | . 25 39 15 . 2 31 2 . 1 7 . 9 . . 47 2 4 . . . 3 36 90 69 21 124 561 448 AOE 18 | . . . . . . . . . . . . . . . . . . . . . . 4 . 4 . 6 3 1 Critical Strikes 107 | . 1 1 . . . . . . . . . 1 . . 1 . . . . . . 3 7 5 4 17 30 37 Actively Blocked 2 | . . . . . . . . . . . . . . . . . . . . . . . . . . . 1 1 Part Disruptions 4 | . . . . . . . . . . . . . . . . . . . . . . . 1 . . . 1 2 Damage Taken 35129 | . 316 944 264 . 109 472 88 28 15 273 59 184 . . 964 19 140 10 24 . 107 1339 2516 1636 913 3690 7822 13197 Core 3289 | . 18 155 57 . 38 135 12 28 . 58 59 23 . . 176 . . 10 17 . 20 259 339 61 23 195 378 1228 Absorbed by Shields 12157 | . . . . . . 22 28 . . . . . . . 508 19 . . 6 . 62 249 245 800 377 563 5337 3941 Reduced by Siege Mode 3465 | . . . . . . . . . . . . . . . . . . . . . . 39 31 189 176 343 958 1729 Redirected to Shielding 257 | . . . . . . . . . . . . . . . . . . . . . . . . . . 43 164 50 Ignored by Resistances 43 | . . . . . . . 35 8 . . . . . . . . . . . . . . . . . . . . Regen/Repaired (Parts) 5231 | . . . . . 104 164 18 . . 38 . 351 . . 141 83 40 23 . . . 114 799 12 . 106 1699 1539 Core Remaining (%) 67 | 100 . . . 8 . . . . 74 . . . . . . 68 . . . . 95 . 54 . . 72 . . Volleys Fired 1482 | 25 78 66 9 . . 4 1 . . 6 11 2 . . 7 . . 2 . . . 28 43 100 83 315 450 252 Largest 4 | 2 2 2 2 . . 1 1 . . 1 1 1 . . 1 . . 1 . . . 1 1 1 1 2 1 4 Hottest 485 | 40 100 160 160 . . 33 . . . 90 35 33 . . 90 . . 90 . . . 90 113 120 40 485 200 330 Shots Fired 1691 | 50 133 101 17 . . 4 1 . . 6 11 2 . . 7 . . 2 . . . 28 44 100 85 310 450 340 Gun 424 | 50 124 47 . . . . . . . . 11 . . . 4 . . . . . . 2 17 . 2 27 5 135 Cannon 1173 | . . 36 17 . . . . . . 4 . . . . 3 . . 2 . . . 9 27 100 83 280 445 167 Launcher 65 | . . . . . . 4 . . . 2 . 2 . . . . . . . . . 17 . . . 2 . 38 Special 29 | . 9 18 . . . . 1 . . . . . . . . . . . . . . . . . . 1 . . Kinetic 313 | 50 124 47 . . . . . . . . 11 . . . . . . . . . . . . . . 3 16 62 Thermal 1118 | . 9 54 17 . . . . . . 4 . . . . 3 . . 2 . . . 9 27 100 85 200 385 223 Explosive 26 | . . . . . . 4 . . . 2 . 2 . . . . . . . . . . . . . . . 18 Electromagnetic 200 | . . . . . . . . . . . . . . . . . . . . . . 17 . . . 106 49 28 Impact 9 | . . . . . . . . . . . . . . . . . . . . . . . . . . . . 9 Entropic 23 | . . . . . . . . . . . . . . . 4 . . . . . . 2 17 . . . . . Robot Hit Streak 32 | 6 14 10 11 . . 5 6 . . . 9 . . . . . . . . . . 3 6 13 17 23 29 32 Robot Miss Streak 6 | 5 3 2 1 . . . . . . . 2 1 . . . . . . . . . 1 3 3 3 6 6 6 Penetration Max 2 | . . . . . . . . . . . 1 . . . . . . . . . . . . . . 1 1 2 Secondary Targets 4 | . . . . . . . . . . . . . . . . . . . . . . . . . . . . 4 Max Gunslinging Chain 1 | . . . . . . . . . . . . . . . . . . . . . . . . . . . . 1 Capacitor 1051 | . . . . . . . . . . . . . . . . . . . . . . . . 90 85 300 423 153 Shots Hit Robots 1160 | 26 76 49 13 . 20 19 5 13 12 14 39 6 2 . . 1 15 4 2 2 . 9 23 66 52 152 303 237 Core Hits 884 | 8 26 16 4 . 7 20 1 5 6 4 13 6 1 . . . 8 4 2 1 . 45 10 27 17 104 257 292 Critical Kills 50 | . . 2 . . . . . . . . . . . . . . . . . . . . . 6 2 4 24 12 Critical Parts Destroyed 7 | . 2 . . . . . . . . . 1 . . . . . . . . . . . 1 . . . . 3 Critical Strikes 63 | . 2 2 . . . . . . . . 2 . . . . . . . . . . . 1 6 2 6 25 17 Meltdown 50 | . . 2 . . . . . . . . . . . . . . . . . . . . . 6 2 4 24 12 Destroy 8 | . 2 . . . . . . . . . 2 . . . . . . . . . . . . . . . . 4 Corrupt 4 | . . . . . . . . . . . . . . . . . . . . . . . . . . 2 1 1 Detonate 1 | . . . . . . . . . . . . . . . . . . . . . . . 1 . . . . . Melee Attacks 258 | . . . . . 27 21 4 13 17 26 31 20 13 3 2 12 25 7 4 2 17 14 . . . . . . Impact . | . . . . . . . . . . . . . . . . . . . . . . . . . . . . . Slashing 258 | . . . . . 27 21 4 13 17 26 31 20 13 3 2 12 25 7 4 2 17 14 . . . . . . Piercing . | . . . . . . . . . . . . . . . . . . . . . . . . . . . . . Sneak Attacks 120 | . . . . . 19 13 4 13 8 10 31 5 2 . . 1 11 2 1 . . . . . . . . . Combat Hostiles . | . . . . . . . . . . . . . . . . . . . . . . . . . . . . . Follow-up Attacks 1 | . . . . . . . . . . . . . . . . . . . . 1 . . . . . . . . Damage Inflicted 125036 | 285 785 1087 357 . 1519 1969 352 1292 815 908 2074 794 174 . . 74 991 367 175 163 . 2830 1439 3173 2674 14555 48914 37270 Guns 7035 | 285 785 295 . . . . . . . . 246 . . . . . . . . . . . 719 . . 544 97 4064 Cannons 57058 | . . 792 357 . . . . . . . . . . . . . . . . . . . 350 3173 2674 7550 31711 10451 Explosions 50314 | . . . . . . 542 . . . . . 350 . . . . . . . . . 2732 370 . . 6461 17106 22753 Melee 10627 | . . . . . 1519 1427 352 1292 815 908 1828 444 174 . . 74 991 367 175 163 . 98 . . . . . . Ramming 2 | . . . . . . . . . . . . . . . . . . . . . . . . . . . . 2 Kinetic 4230 | 285 785 295 . . . . . . . . 246 . . . . . . . . . . . . . . 87 674 1858 Thermal 81778 | . . 792 357 . . . . . . . . . . . . . . . . . . 740 578 3173 2674 12312 46878 14274 Explosive 19505 | . . . . . . 542 . . . . . 350 . . . . . . . . . . 142 . . . 162 18309 Electromagnetic 7649 | . . . . . . . . . . . . . . . . . . . . . . 1992 . . . 2156 1200 2301 Impact 526 | . . . . . . . . . . . . . . . . . . . . . . . . . . . . 526 Slashing 10627 | . . . . . 1519 1427 352 1292 815 908 1828 444 174 . . 74 991 367 175 163 . 98 . . . . . . Piercing . | . . . . . . . . . . . . . . . . . . . . . . . . . . . . . Entropic 719 | . . . . . . . . . . . . . . . . . . . . . . . 719 . . . . . Highest Corruption 64 | . . . . . 1 5 5 11 1 . . . . . . . . . . . . . 18 3 5 17 20 64 Average Corruption 8 | . . . . . 1 4 5 4 1 . . . . . . . . . . . . . 6 2 3 12 14 15 Corruption Purged 32 | . . . . . . . . 19 . . . . . . . . . . . . . . . . . . . 13 Corruption Blocked . | . . . . . . . . . . . . . . . . . . . . . . . . . . . . . Effects 398 | . . . . . 7 37 12 7 5 . . . . . . . . . . . . . 27 12 23 96 110 62 Message Errors 96 | . . . . . 3 8 5 1 1 . . . . . . . . . . . . . 6 3 7 20 28 14 Matter Fused 110 | . . . . . 2 12 4 3 1 . . . . . . . . . . . . . 10 . 9 24 25 20 Heat Flow Errors 38 | . . . . . 2 4 . 2 . . . . . . . . . . . . . . 1 3 1 9 10 6 Energy Discharges 42 | . . . . . . 4 3 . 1 . . . . . . . . . . . . . 7 1 2 9 14 1 Parts Rejected 2 | . . . . . . . . . . . . . . . . . . . . . . . . . . . 1 1 Parts Fused 5 | . . . . . . 1 . . . . . . . . . . . . . . . . . 1 . . 2 1 Data Loss (minor) 40 | . . . . . . 4 . . 1 . . . . . . . . . . . . . 1 1 2 13 13 5 Data Loss (major) 17 | . . . . . . 3 . 1 1 . . . . . . . . . . . . . 1 2 . 3 4 2 Misfires 14 | . . . . . . . . . . . . . . . . . . . . . . . 1 . 2 5 4 2 Alerts 10 | . . . . . . 1 . . . . . . . . . . . . . . . . . 1 . 2 5 1 Misdirections 1 | . . . . . . . . . . . . . . . . . . . . . . . . . . . . 1 Weapon Failures 23 | . . . . . . . . . . . . . . . . . . . . . . . . . . 11 4 8 Overload Shots 1 | . . . . . . . . . . . . . . . . . . . . . . . . . . 1 . . Overflow Damage 9485 | . . . . . 526 384 55 480 110 278 177 121 93 . . 34 123 . . 92 . 24 69 34 181 1270 3237 2197 Projectiles 3729 | . . . . . . . . . . . . . . . . . . . . . . . 34 34 181 706 1953 821 Explosions 3284 | . . . . . . . . . . . . 1 . . . . . . . . . 24 35 . . 564 1284 1376 Melee 2472 | . . . . . 526 384 55 480 110 278 177 120 93 . . 34 123 . . 92 . . . . . . . . Knockbacks 1 | . . . . . . . . . . . . . . . . . . . . . . . . . . . 1 . Impact . | . . . . . . . . . . . . . . . . . . . . . . . . . . . . . Kinetic 1 | . . . . . . . . . . . . . . . . . . . . . . . . . . . 1 . Secondary . | . . . . . . . . . . . . . . . . . . . . . . . . . . . . . Self-Inflicted Damage 1572 | . . . . . . . . . . . . . . . . . . . . . . 10 229 . . 471 74 788 Shots 24 | . . . . . . . . . . . . . . . . . . . . . . 1 2 . . 7 1 13 Rammed . | . . . . . . . . . . . . . . . . . . . . . . . . . . . . . Targets Rammed 2 | . . 1 . . . . . . . . . . . . . . . . . . . . . . . . . 1 Kicked 1 | . . . . . . . . . . . . . . . . . . . . . . . . . . . . 1 Crushed 1 | . . 1 . . . . . . . . . . . . . . . . . . . . . . . . . . Highest Temperature 703 | . 64 60 703 . 267 250 . 186 . 90 . . . . 74 . . 84 . . . 3 184 194 191 320 342 183 Average Temperature 70 | . 14 15 318 . 119 113 . 85 . 42 . . . . 43 . . 42 . . . 2 112 42 44 75 76 30 Received Heat Transfer 2392 | . 156 138 72 . 6 105 9 . . 18 . 18 . . 117 . 27 . 4 . 8 30 25 32 20 374 590 643 Effects 11 | . . . 11 . . . . . . . . . . . . . . . . . . . . . . . . . Shutdowns 2 | . . . 2 . . . . . . . . . . . . . . . . . . . . . . . . . Energy Bleed 3 | . . . 3 . . . . . . . . . . . . . . . . . . . . . . . . . Interference 2 | . . . 2 . . . . . . . . . . . . . . . . . . . . . . . . . Matter Decay 1 | . . . 1 . . . . . . . . . . . . . . . . . . . . . . . . . Short Circuit 1 | . . . 1 . . . . . . . . . . . . . . . . . . . . . . . . . Damage (minor) 1 | . . . 1 . . . . . . . . . . . . . . . . . . . . . . . . . Damage (core) 1 | . . . 1 . . . . . . . . . . . . . . . . . . . . . . . . . Siege Activations 57 | . . . . . . . . . . . . . . . . . . . . . . 1 1 4 6 18 19 8 Total Turns 1600 | . . . . . . . . . . . . . . . . . . . . . . 7 10 37 119 187 822 418 Longest Duration 384 | . . . . . . . . . . . . . . . . . . . . . . 7 10 19 45 48 384 158 Martial Activations . | . . . . . . . . . . . . . . . . . . . . . . . . . . . . . Shielding Activations . | . . . . . . . . . . . . . . . . . . . . . . . . . . . . . Robots Disrupted 7 | . . . . . . 1 . 1 . 1 . 1 . . . . 1 . . . . 1 . . . 1 . . Combat Hostiles 3 | . . . . . . . . . . . . . . . . . 1 . . . . 1 . . . 1 . . Robots Corrupted 32 | . . . . . . . . . . . . . . . . . . . . . . 3 . . . 12 8 9 Combat Hostiles 32 | . . . . . . . . . . . . . . . . . . . . . . 3 . . . 12 8 9 Parts Fried 64 | . . . . . . . . . . . . . . . . . . . . . . 9 . . . 24 14 17 Impact Corruptions 7 | . . . . . . . . . . . . . . . . . . . . . . . . . . . . 7 Robots Melted 65 | . . 2 . . . . . . . . . . . . . . . . . . . . . 6 2 4 39 12 Combat Hostiles 54 | . . 2 . . . . . . . . . . . . . . . . . . . . . 5 2 4 32 9 Parts Melted 144 | . . 4 1 . . . . . . . . . . . . . 2 . . . . 1 . 10 4 14 78 30 Heat Transferred 53180 | . . 1073 481 . . . . . . . . . . . . . . . . . . 725 483 37 . 9731 31587 9063 Parts Sabotaged 17 | . . . . . . . . . . . . . . . . . . . . . . . . . . . 7 10 Parts Stolen . | . . . . . . . . . . . . . . . . . . . . . . . . . . . . . Parts Stripped . | . . . . . . . . . . . . . . . . . . . . . . . . . . . . . Power Chain Reactions 13 | . . . . . . . . . . . . . . . . . . . . . . 6 . . . . . 7 Alert | -11 -10 -10 -9 -9 -6 -6 -6 -6 -6 -5 -5 -5 -5 -5 -5 -4 -4 -4 -4 -4 -3 -3 -3 -2 -2 -2 -1 -1 ------- Run | Yrd Mat Sub Rec Scr Fac Ext Cet Arc Hub Fac Was Fac Upp Upp War Pro Fac Upp Upp Zhi Pro Res Qua Res Tes Frg Acc Com Maximum Alert Level 5 | . . . . . . 1 1 . 2 5 2 3 . . . . . . . . . 3 2 1 1 5 5 5 Low Security (%) 40 | 100 100 . 100 . 100 81 55 100 29 23 32 15 . . . . 100 . . . . 16 . 13 77 7 . . Level 1 15 | . . . . . . 18 45 . 22 23 39 39 . . . . . . . . . 5 29 86 22 12 . . Level 2 10 | . . . . . . . . . 48 16 27 24 . . . . . . . . . 7 70 . . 16 . . Level 3 9 | . . . . . . . . . . 20 . 19 . . . . . . . . . 71 . . . 14 . . Level 4 7 | . . . . . . . . . . 11 . . . . . . . . . . . . . . . 33 26 . Level 5 3 | . . . . . . . . . . 4 . . . . . . . . . . . . . . . 16 . 24 High Security 13 | . . . . . . . . . . . . . . . . . . . . . . . . . . . 72 75 Max Security . | . . . . . . . . . . . . . . . . . . . . . . . . . . . . . Sterilizations 1 | . . . . . . . . . . . . . . . . . . . . . . . . . . . 1 . Peak Influence 6919 | 10 94 . 52 . 104 299 261 195 484 1614 561 941 . . . . 190 . . . . 991 527 352 226 1870 6045 6919 Initial 3868 | . 3 . 16 . . . 140 75 . 202 561 59 . . . . 39 . . . . . 527 234 197 99 1116 3868 Average 1080 | 1 29 . 6 . 19 110 184 69 299 627 295 438 . . . . 54 . . . . 712 420 263 158 1037 3977 5381 Influence Increases 23855 | 25 325 55 271 . 259 1050 451 250 683 2224 26 1372 100 40 177 324 357 196 395 . 252 1767 627 761 403 2455 5469 3541 Destroy 0b10 Robot/C 12700 | . 140 40 60 . 120 520 200 80 220 760 . 500 40 20 60 240 160 120 220 . 140 860 220 420 220 1280 3600 2460 Destroy 0b10 Robot/NC 1090 | 25 30 . 5 . 70 70 10 45 45 60 . 20 . . . . 45 . 10 . 15 35 40 45 20 110 240 150 Destroy Leader 1964 | . 36 . . . 22 42 10 . 32 176 . 100 10 . . 30 32 20 30 . 20 150 24 132 22 152 540 384 Allied During Kill 3458 | . . . . . 34 342 213 125 297 972 . 620 50 20 12 54 76 56 135 . 77 299 44 32 . . . . Successful Hack 154 | . 5 . 22 . 7 11 . . . 1 . 30 . . . . 14 . . . . 24 14 . . 5 21 . Select Force Hacks 180 | . . . 180 . . . . . . . . . . . . . . . . . . . . . . . . . Disable Machine 855 | . . . . . . 30 15 . 75 105 . 45 . . . . . . . . . 15 75 15 75 270 75 60 Anti-Garrison Action 300 | . . . . . . . . . . . . . . . . . . . . . . 150 . . . 150 . . Destroy Structure 2554 | . 9 . 4 . 6 5 3 . 14 150 26 42 . . . . 30 . . . . 174 150 117 66 473 933 352 Lose Combat Pursuer 600 | . 105 15 . . . 30 . . . . . 15 . . 105 . . . . . . 60 60 . . 15 60 135 Influence Decreases 16956 | 20 307 43 306 . 259 798 514 439 270 1033 1545 536 848 213 137 300 240 377 373 22 252 829 1149 826 576 773 1284 2687 Entered New Map 5817 | . 2 12 19 . . . 112 114 . 211 1043 26 342 34 . 40 25 68 . 22 . . 411 182 154 79 744 2177 Time Decay 9179 | 20 305 31 277 . 239 458 262 285 270 632 482 490 506 179 107 260 215 309 373 . 212 549 518 514 422 654 440 170 Lost Part 560 | . . . 10 . . . . . . . . . . . . . . . . . . 20 20 30 . 40 100 340 Lost Ally 1250 | . . . . . 20 340 140 40 . 40 20 20 . . 30 . . . . . 40 260 200 100 . . . . Purge Threat 150 | . . . . . . . . . . 150 . . . . . . . . . . . . . . . . . . Squads Dispatched 151 | . . . . . 3 2 1 . 3 14 . 6 . . . . 5 . . . . 11 4 4 3 15 45 35 Investigation 16 | . . . . . 2 1 1 . . 2 . . . . . . 2 . . . . 7 . . . . 1 . Extermination 30 | . . . . . 1 . . . 1 6 . 2 . . . . 3 . . . . . 2 4 3 5 2 1 Reinforcement 18 | . . . . . . 1 . . 1 3 . 1 . . . . . . . . . 4 1 . . 1 6 . Assault 86 | . . . . . . . . . . 3 . 3 . . . . . . . . . . 1 . . 9 36 34 Garrison 1 | . . . . . . . . . 1 . . . . . . . . . . . . . . . . . . . Intercept . | . . . . . . . . . . . . . . . . . . . . . . . . . . . . . Searches Triggered . | . . . . . . . . . . . . . . . . . . . . . . . . . . . . . Unchained Authorized 1 | . . . . . . . . . . . . . . . . . . . . . . . . . . . 1 . Construction Impeded 7 | . . . . . . 1 . . . . . . . . . . . . . . . 1 . . . . 5 . Haulers Reinforced 4 | . . . . . . . . . 1 1 . . . . . . . . . . . 1 . . . . 1 . Active Scanning Responses . | . . . . . . . . . . . . . . . . . . . . . . . . . . . . . Cargo Convoy Interrupts . | . . . . . . . . . . . . . . . . . . . . . . . . . . . . . Stealth | -11 -10 -10 -9 -9 -6 -6 -6 -6 -6 -5 -5 -5 -5 -5 -5 -4 -4 -4 -4 -4 -3 -3 -3 -2 -2 -2 -1 -1 --------- Run | Yrd Mat Sub Rec Scr Fac Ext Cet Arc Hub Fac Was Fac Upp Upp War Pro Fac Upp Upp Zhi Pro Res Qua Res Tes Frg Acc Com Distress Signals 17 | . . . . . . 2 2 . 2 . . . . . 1 . . . . . . 6 . . . . 2 2 Communications Jammed 159 | . . . . . . . . . . 27 . . . . . . . . . . 2 52 11 12 1 6 1 47 Distress Signals 144 | . . . . . . . . . . 24 . . . . . . . . . . . 52 11 3 1 6 . 47 Times Spotted 896 | . 21 20 2 . 9 33 10 2 13 26 5 20 2 . 55 8 8 5 10 . 8 55 29 24 14 76 217 224 Peak Tracking Total 31 | . 3 6 2 . 2 6 5 . 5 3 2 5 1 . 18 5 3 2 3 . 3 11 6 4 3 9 12 31 Tactical Retreats 26 | . 6 1 . . . 1 . . . . . 1 . . 4 . . . . . . 1 2 . . 1 4 5 Traps | -11 -10 -10 -9 -9 -6 -6 -6 -6 -6 -5 -5 -5 -5 -5 -5 -4 -4 -4 -4 -4 -3 -3 -3 -2 -2 -2 -1 -1 ------- Run | Yrd Mat Sub Rec Scr Fac Ext Cet Arc Hub Fac Was Fac Upp Upp War Pro Fac Upp Upp Zhi Pro Res Qua Res Tes Frg Acc Com Traps Triggered 18 | . 1 2 . . 2 4 . . . 1 . . . . . . . . . . . . . . . 6 1 1 Indirectly 2 | . . . . . . . . . . . . . . . . . . . . . . . . . . 1 . 1 Trap Hack Attempts . | . . . . . . . . . . . . . . . . . . . . . . . . . . . . . Triggered . | . . . . . . . . . . . . . . . . . . . . . . . . . . . . . Disarmed . | . . . . . . . . . . . . . . . . . . . . . . . . . . . . . Reprogrammed . | . . . . . . . . . . . . . . . . . . . . . . . . . . . . . Reused . | . . . . . . . . . . . . . . . . . . . . . . . . . . . . . Traps Extracted . | . . . . . . . . . . . . . . . . . . . . . . . . . . . . . Installed . | . . . . . . . . . . . . . . . . . . . . . . . . . . . . . Triggered . | . . . . . . . . . . . . . . . . . . . . . . . . . . . . . Most Traps Carried 2 | . . . . 2 1 . . . . . . . . . . . . . . . . . . . . . . . Machines | -11 -10 -10 -9 -9 -6 -6 -6 -6 -6 -5 -5 -5 -5 -5 -5 -4 -4 -4 -4 -4 -3 -3 -3 -2 -2 -2 -1 -1 ---------- Run | Yrd Mat Sub Rec Scr Fac Ext Cet Arc Hub Fac Was Fac Upp Upp War Pro Fac Upp Upp Zhi Pro Res Qua Res Tes Frg Acc Com Machines Disabled 70 | . . 1 . . . 2 1 . 5 7 . 3 . . 1 . . . . . . 2 5 1 7 24 6 5 Max in Single Turn 2 | . . 1 . . . 1 1 . 1 1 . 1 . . 1 . . . . . . 1 1 1 1 2 1 1 Garrison Access 2 | . . . . . . . . . . . . . . . . . . . . . . 1 . . . 1 . . Energy Cycler 1 | . . . . . . . . . . . . . . . . . . . . . . . . . . . 1 . Machines Repaired 1 | . . . . . . . . . . . . 1 . . . . . . . . . . . . . . . . Machines Dismantled 2 | . . . . . . 1 1 . . . . . . . . . . . . . . . . . . . . . Machines Sabotaged . | . . . . . . . . . . . . . . . . . . . . . . . . . . . . . Overloaded Fab Kills . | . . . . . . . . . . . . . . . . . . . . . . . . . . . . . Hacking | -11 -10 -10 -9 -9 -6 -6 -6 -6 -6 -5 -5 -5 -5 -5 -5 -4 -4 -4 -4 -4 -3 -3 -3 -2 -2 -2 -1 -1 --------- Run | Yrd Mat Sub Rec Scr Fac Ext Cet Arc Hub Fac Was Fac Upp Upp War Pro Fac Upp Upp Zhi Pro Res Qua Res Tes Frg Acc Com Machines Accessed 78 | . 5 3 11 4 8 3 1 . 1 11 . 5 . . 2 . 4 1 . 4 . 4 1 3 1 3 3 . Terminals 34 | . 5 . 4 . 2 3 1 . 1 6 . 3 . . . . 2 . . . . 1 1 1 . 2 2 . Fabricators 2 | . . . . . . . . . . 2 . . . . . . . . . . . . . . . . . . Repair Stations 2 | . . . . . 1 . . . . . . 1 . . . . . . . . . . . . . . . . Recycling Units 14 | . . . 6 . 3 . . . . 1 . . . . . . 2 . . . . 2 . . . . . . Scanalyzers 4 | . . . . . 1 . . . . 1 . 1 . . . . . . . . . . . 1 . . . . Garrison Access 7 | . . . . . 1 . . . . 1 . . . . . . . . . . . 1 . 1 1 1 1 . Total Hacks 193 | . 14 7 41 7 18 8 2 . 2 22 . 10 . . 7 . 10 1 . 17 . 6 3 4 1 8 5 . Successful 106 | . 7 7 30 7 5 3 . . . 6 . 5 . . 7 . 3 1 . 17 . 2 1 . . 4 1 . Failed 86 | . 7 . 11 . 12 5 2 . 2 16 . 5 . . . . 7 . . . . 4 2 4 1 4 4 . Catastrophic 19 | . 2 . 1 . 1 1 1 . . 5 . 1 . . . . 1 . . . . 1 1 1 1 1 1 . Database Lockouts 1 | . . . . . 1 . . . . . . . . . . . . . . . . . . . . . . . Manual 61 | . 13 . 21 . 3 4 1 . . 3 . 3 . . . . 4 . . . . 4 . . . 2 3 . Terminals 74 | . 14 . 15 . 3 8 2 . 2 9 . 4 . . . . 2 . . . . 1 3 1 . 6 4 . Fabricators 6 | . . . . . . . . . . 6 . . . . . . . . . . . . . . . . . . Repair Stations 4 | . . . . . 2 . . . . . . 2 . . . . . . . . . . . . . . . . Recycling Units 39 | . . . 17 . 9 . . . . 2 . . . . . . 8 . . . . 3 . . . . . . Scanalyzers 12 | . . . . . 3 . . . . 3 . 4 . . . . . . . . . . . 2 . . . . Garrison Access 10 | . . . . . 1 . . . . 2 . . . . . . . . . . . 2 . 1 1 2 1 . Terminal Hacks 64 | . 1 7 14 7 . 2 . . . 1 . 1 . . 7 . . 1 . 17 . . 1 . . 4 1 . Record 25 | . . 5 9 6 . . . . . . . . . . . . . . . 5 . . . . . . . . Part Schematic 4 | . . . . . . . . . . . . . . . . . . . . 4 . . . . . . . . Robot Analysis 4 | . . . . . . . . . . . . . . . . . . . . 4 . . . . . . . . Prototype ID Bank 10 | . . . . . . . . . . . . . . . 6 . . . . 4 . . . . . . . . Open Door 5 | . . 1 . 1 . 1 . . . . . . . . 1 . . 1 . . . . . . . . . . Branch Access Points 2 | . . . . . . . . . . . . 1 . . . . . . . . . . . . . . 1 . Terminal Index 1 | . . . . . . . . . . . . . . . . . . . . . . . 1 . . . . . Alert Level 1 | . . . . . . . . . . . . . . . . . . . . . . . . . . 1 . . Unreport Threat 1 | . . . . . . . . . . 1 . . . . . . . . . . . . . . . . . . Dispatch Records 1 | . . . 1 . . . . . . . . . . . . . . . . . . . . . . . . . Maintenance Status 2 | . 1 . . . . . . . . . . . . . . . . . . . . . . . . 1 . . Security Status 1 | . . . 1 . . . . . . . . . . . . . . . . . . . . . . . . . Zone Layout 5 | . . . 3 . . 1 . . . . . . . . . . . . . . . . . . . 1 . . Proto ID Catalog 1 | . . . . . . . . . . . . . . . . . . . . . . . . . . 1 . . Release Object 1 | . . 1 . . . . . . . . . . . . . . . . . . . . . . . . . . Fabricator Hacks 1 | . . . . . . . . . . 1 . . . . . . . . . . . . . . . . . . Network Status 1 | . . . . . . . . . . 1 . . . . . . . . . . . . . . . . . . Repair Station Hacks 4 | . . . . . 2 . . . . . . 2 . . . . . . . . . . . . . . . . Scan Component 2 | . . . . . 1 . . . . . . 1 . . . . . . . . . . . . . . . . Repair 2 | . . . . . 1 . . . . . . 1 . . . . . . . . . . . . . . . . Recycling Unit Hacks 7 | . . . 6 . 1 . . . . . . . . . . . . . . . . . . . . . . . Retrieve Components 7 | . . . 6 . 1 . . . . . . . . . . . . . . . . . . . . . . . Scanalyzer 6 | . . . . . 1 . . . . 3 . 2 . . . . . . . . . . . . . . . . Insert Component 2 | . . . . . . . . . . 1 . 1 . . . . . . . . . . . . . . . . Analyze 1 | . . . . . . . . . . . . 1 . . . . . . . . . . . . . . . . Retrieve Study 3 | . . . . . 1 . . . . 2 . . . . . . . . . . . . . . . . . . Garrison Access Hacks . | . . . . . . . . . . . . . . . . . . . . . . . . . . . . . Unauthorized Hacks 24 | . 6 . 10 . 1 1 . . . 1 . . . . . . 3 . . . . 2 . . . . . . Terminals 14 | . 6 . 4 . . 1 . . . 1 . . . . . . 1 . . . . 1 . . . . . . Track 1 | . . . 1 . . . . . . . . . . . . . . . . . . . . . . . . . Botnet 7 | . 2 . 1 . . 1 . . . 1 . . . . . . 1 . . . . 1 . . . . . . Operators 1 | . 1 . . . . . . . . . . . . . . . . . . . . . . . . . . . Skim 5 | . 3 . 2 . . . . . . . . . . . . . . . . . . . . . . . . . Fabricators . | . . . . . . . . . . . . . . . . . . . . . . . . . . . . . Repair Stations . | . . . . . . . . . . . . . . . . . . . . . . . . . . . . . Recycling Units 10 | . . . 6 . 1 . . . . . . . . . . . 2 . . . . 1 . . . . . . Tunnel 6 | . . . 6 . . . . . . . . . . . . . . . . . . . . . . . . . Fedlink 4 | . . . . . 1 . . . . . . . . . . . 2 . . . . 1 . . . . . . Scanalyzers . | . . . . . . . . . . . . . . . . . . . . . . . . . . . . . Garrison Access . | . . . . . . . . . . . . . . . . . . . . . . . . . . . . . Data Cores Recovered 2 | . . . . . . . . . . . . 1 . . . . . . . . . . . 1 . . . . Used . | . . . . . . . . . . . . . . . . . . . . . . . . . . . . . Hacking Detections 54 | . 5 . 7 . 6 3 2 . 1 11 . 4 . . . . 3 . . . . 2 1 3 1 2 3 . Full Trace Events 6 | . . . . . 1 1 1 . . 2 . . . . . . . . . . . 1 . . . . . . Feedback Events . | . . . . . . . . . . . . . . . . . . . . . . . . . . . . . Feedback Blocked . | . . . . . . . . . . . . . . . . . . . . . . . . . . . . . Robot Schematics Acquired 3 | . . . . . . . . . . . . . . . . . . . . . . . 3 . . . . . Robots Built . | . . . . . . . . . . . . . . . . . . . . . . . . . . . . . Authchips . | . . . . . . . . . . . . . . . . . . . . . . . . . . . . . Time . | . . . . . . . . . . . . . . . . . . . . . . . . . . . . . Total Robot Build Rating . | . . . . . . . . . . . . . . . . . . . . . . . . . . . . . Part Schematics Acquired 11 | . . . . . . . . . . . . 1 . . . . . . . 4 . . 6 . . . . . Parts Built . | . . . . . . . . . . . . . . . . . . . . . . . . . . . . . Authchips . | . . . . . . . . . . . . . . . . . . . . . . . . . . . . . Time . | . . . . . . . . . . . . . . . . . . . . . . . . . . . . . Total Part Build Rating . | . . . . . . . . . . . . . . . . . . . . . . . . . . . . . Part Studies Acquired 2 | . . . . . 1 . . . . 1 . . . . . . . . . . . . . . . . . . Parts Repaired 2 | . . . . . 1 . . . . . . 1 . . . . . . . . . . . . . . . . Time 140 | . . . . . 32 . . . . . . 108 . . . . . . . . . . . . . . . . Parts Recycled . | . . . . . . . . . . . . . . . . . . . . . . . . . . . . . Recycled Matter . | . . . . . . . . . . . . . . . . . . . . . . . . . . . . . Retrieved Matter . | . . . . . . . . . . . . . . . . . . . . . . . . . . . . . Retrieved Components 32 | . . . 22 . 10 . . . . . . . . . . . . . . . . . . . . . . . Parts Scanalyzed 1 | . . . . . . . . . . . . 1 . . . . . . . . . . . . . . . . Part Schematics Acquired 1 | . . . . . . . . . . . . 1 . . . . . . . . . . . . . . . . Parts Damaged . | . . . . . . . . . . . . . . . . . . . . . . . . . . . . . Bothacking | -11 -10 -10 -9 -9 -6 -6 -6 -6 -6 -5 -5 -5 -5 -5 -5 -4 -4 -4 -4 -4 -3 -3 -3 -2 -2 -2 -1 -1 ------------ Run | Yrd Mat Sub Rec Scr Fac Ext Cet Arc Hub Fac Was Fac Upp Upp War Pro Fac Upp Upp Zhi Pro Res Qua Res Tes Frg Acc Com Used RIF Installer . | . . . . . . . . . . . . . . . . . . . . . . . . . . . . . Robots Hacked . | . . . . . . . . . . . . . . . . . . . . . . . . . . . . . Non-combat . | . . . . . . . . . . . . . . . . . . . . . . . . . . . . . Combat . | . . . . . . . . . . . . . . . . . . . . . . . . . . . . . Robot Hacks Applied . | . . . . . . . . . . . . . . . . . . . . . . . . . . . . . Relay Couplers Released 5 | . . . . . . . . . . . . . . . . . . . . . . 1 . 3 . 1 . . Machine Destruction 2 | . . . . . . . . . . . . . . . . . . . . . . 1 . . . 1 . . Programmers 3 | . . . . . . . . . . . . . . . . . . . . . . . . 3 . . . . Fabnet Peak Effective % . | . . . . . . . . . . . . . . . . . . . . . . . . . . . . . Robots Rewired 20 | . . . . . . 15 . . . . . . . . 5 . . . . . . . . . . . . . Allies Hacked 8 | . . . . . 1 . . . . . . . . . 1 . 1 1 . . . . 4 . . . . . Hacks Repelled 3 | . . . . . . . . . . . . . . . . . 1 2 . . . . . . . . . . Allies | -11 -10 -10 -9 -9 -6 -6 -6 -6 -6 -5 -5 -5 -5 -5 -5 -4 -4 -4 -4 -4 -3 -3 -3 -2 -2 -2 -1 -1 -------- Run | Yrd Mat Sub Rec Scr Fac Ext Cet Arc Hub Fac Was Fac Upp Upp War Pro Fac Upp Upp Zhi Pro Res Qua Res Tes Frg Acc Com Total Allies 51 | . . . . . . 22 5 . . . 19 . . . 5 . . . . . . . . . . . . . Largest Group 18 | . . . . . . 11 11 8 3 2 18 4 2 2 4 . . . . . . . . . . . . . Highest-Rated Group 750 | . . . . . . 420 750 594 136 40 656 157 73 73 210 . . . . . . . . . . . . . Highest-Rated Ally 159 | . . . . . . 159 159 152 96 20 50 46 46 46 64 . . . . . . . . . . . . . Initial UFD Resources 74 | . . . . . 24 34 34 34 34 36 36 36 36 36 36 40 40 54 54 54 56 56 66 70 70 70 74 74 Total Orders 73 | . . . . . 5 4 7 4 1 9 1 . 6 2 6 4 3 2 . . 6 2 9 2 . . . . STAY 37 | . . . . . 1 2 6 2 1 4 1 . 3 1 3 2 2 1 . . 3 1 3 1 . . . . FOLLOW 30 | . . . . . 1 2 1 2 . 5 . . 3 1 3 2 1 1 . . 3 1 3 1 . . . . AID 1 | . . . . . . . . . . . . . . . . . . . . . . . 1 . . . . . DROP 5 | . . . . . 3 . . . . . . . . . . . . . . . . . 2 . . . . . Ally Attacks 1395 | . . . . . 32 151 95 23 44 194 75 145 23 8 24 33 42 31 73 . 78 211 84 29 . . . . Total Damage 41266 | . . . . . 657 3531 3181 899 1829 6093 2373 3346 815 224 1033 659 1313 1043 1855 . 1568 6644 2681 1522 . . . . Kills 256 | . . . . . 6 28 12 4 14 45 6 24 2 1 3 12 8 6 16 . 9 37 13 10 . . . . Allies Corrupted 16 | . . . . . . . . . . . . . . . 6 . . . . . . 1 8 1 . . . . Allies Melted 4 | . . 2 . . . 2 . . . . . . . . . . . . . . . . . . . . . . Borg Created 68 | . . . . . 8 13 1 2 1 1 3 . . . 6 2 2 1 1 . 1 10 14 2 . . . . Largest Collective 7 | . . . . . 5 6 4 5 6 5 6 . . . 4 3 5 6 7 . 5 5 4 3 . . . . Intel | -11 -10 -10 -9 -9 -6 -6 -6 -6 -6 -5 -5 -5 -5 -5 -5 -4 -4 -4 -4 -4 -3 -3 -3 -2 -2 -2 -1 -1 ------- Run | Yrd Mat Sub Rec Scr Fac Ext Cet Arc Hub Fac Was Fac Upp Upp War Pro Fac Upp Upp Zhi Pro Res Qua Res Tes Frg Acc Com Active Infowar (turns) 34735 | 70 281 4452 . . 1232 1564 20 . 686 2204 992 1268 1373 786 931 705 904 1920 1759 381 2196 2571 1434 1295 857 1608 2731 515 Sensors 26644 | . . . . . 1232 1564 20 . 686 2025 992 1239 1345 778 926 680 662 1920 1734 380 2090 2124 1217 1153 690 1472 1715 . Structural 11687 | . . . . . 329 760 . . 118 1853 . 1177 847 776 742 . 904 . . . . 2571 1218 392 . . . . Seismic 4803 | 70 281 4452 . . . . . . . . . . . . . . . . . . . . . . . . . . Jamming 9776 | . . . . . . . . . . 164 . 19 526 6 1 25 130 . 25 1 1336 2571 1361 658 852 570 1016 515 Robot Analysis Total 4 | . . . . . . . . . . . . . . . . . . . . 4 . . . . . . . . Derelict Logs Recovered 8 | . . 1 . 2 . . . . . . . . . . . 1 . 2 2 . . . . . . . . . Drone Launches . | . . . . . . . . . . . . . . . . . . . . . . . . . . . . . Drone Recoveries . | . . . . . . . . . . . . . . . . . . . . . . . . . . . . . Exploration | -11 -10 -10 -9 -9 -6 -6 -6 -6 -6 -5 -5 -5 -5 -5 -5 -4 -4 -4 -4 -4 -3 -3 -3 -2 -2 -2 -1 -1 ------------- Run | Yrd Mat Sub Rec Scr Fac Ext Cet Arc Hub Fac Was Fac Upp Upp War Pro Fac Upp Upp Zhi Pro Res Qua Res Tes Frg Acc Com Turns Passed 48940 | 179 1386 5268 2741 3451 1248 1702 560 885 686 2206 1251 1285 1373 786 1687 778 911 2027 1764 385 2213 2571 1434 1413 1020 2421 3922 1387 Spaces Moved 23249 | 62 455 2061 716 1912 749 906 231 302 340 1216 675 699 819 478 903 375 431 1214 1067 232 1298 1421 653 668 433 1038 1582 313 Core 4 | 4 . . . . . . . . . . . . . . . . . . . . . . . . . . . . Treads 17660 | 48 455 184 713 48 . . 56 302 340 1216 675 699 819 478 903 375 431 1214 1067 232 1298 1421 653 668 433 1038 1582 312 Legs 1 | . . . . . . . . . . . . . . . . . . . . . . . . . . . . 1 Wheels 5584 | 10 . 1877 3 1864 749 906 175 . . . . . . . . . . . . . . . . . . . . . Hover . | . . . . . . . . . . . . . . . . . . . . . . . . . . . . . Flight . | . . . . . . . . . . . . . . . . . . . . . . . . . . . . . Fastest Speed 50 | 50 160 145 190 140 132 132 132 240 160 160 160 160 160 160 160 160 160 160 160 160 160 160 166 170 155 155 152 170 Average Speed 170 | 146 233 187 321 178 132 132 158 240 171 160 160 160 160 160 160 160 160 160 160 160 160 160 172 171 164 155 162 196 Slowest Speed 560 | 160 320 320 560 320 150 132 240 240 240 160 160 160 160 160 160 160 160 160 160 160 160 166 173 173 248 160 170 560 Overloaded Moves . | . . . . . . . . . . . . . . . . . . . . . . . . . . . . . Propulsion Burnouts . | . . . . . . . . . . . . . . . . . . . . . . . . . . . . . Robots Hopped . | . . . . . . . . . . . . . . . . . . . . . . . . . . . . . Potential Cave-ins 10 | . . . . . . . . . . . . . . . . . . . . . . . . . . 9 . 1 Cave-ins Triggered 8 | . . . . . . . . . . . . . . . . . . . . . . . . . . . . 8 Teleports 1 | . . . . . . . . . . . . . . . . . . . . . . . . . . 1 . . Exploration Rate (%) 55 | 4 64 87 74 83 16 84 77 83 31 33 96 20 81 58 88 50 9 97 84 60 82 47 71 21 40 26 37 7 Regions Visited 28 Branch Regions 19 Pre-discovered Areas 15 | . . . 6 1 . . . . . . . . . . . 1 1 2 1 3 . . . . . . . . Known Exits Taken 22 | . . 1 . . 1 1 1 1 1 . . 1 1 1 1 1 1 1 1 1 1 1 1 1 1 1 1 . Unknown Exits Taken 4 | 1 1 . 1 1 . . . . . . . . . . . . . . . . . . . . . . . . Scrap Searched 21 | . . . . 8 . . . . . . . . . 1 . 2 . 4 4 . 2 . . . . . . . Spaces Dug 377 | . 8 . . . 6 3 . . 4 27 . 10 11 3 4 11 10 4 2 . 17 25 10 12 9 144 32 25 Terrain Destroyed 1137 | . 8 . 4 . 6 3 . . 4 28 2 16 11 3 8 11 10 5 2 . 17 54 63 31 22 244 393 192 Melee 98 | . . . . . 6 3 . . 4 7 . 10 11 3 2 11 10 3 2 . 17 9 . . . . . . Projectile 471 | . 8 . 4 . . . . . . 3 2 . . . 6 . . 2 . . . 8 15 31 22 51 196 123 AOE 567 | . . . . . . . . . . 18 . 6 . . . . . . . . . 37 48 . . 193 196 69 Terrain Rammed . | . . . . . . . . . . . . . . . . . . . . . . . . . . . . . Walls Destroyed . | . . . . . . . . . . . . . . . . . . . . . . . . . . . . . Machines Disabled . | . . . . . . . . . . . . . . . . . . . . . . . . . . . . . Actions | -11 -10 -10 -9 -9 -6 -6 -6 -6 -6 -5 -5 -5 -5 -5 -5 -4 -4 -4 -4 -4 -3 -3 -3 -2 -2 -2 -1 -1 --------- Run | Yrd Mat Sub Rec Scr Fac Ext Cet Arc Hub Fac Was Fac Upp Upp War Pro Fac Upp Upp Zhi Pro Res Qua Res Tes Frg Acc Com Total 31163 | 101 642 3332 1153 1964 950 1333 406 443 418 1425 784 820 858 494 1114 523 606 1280 1113 244 1403 1625 877 921 735 1799 2856 944 Wait 4402 | . 73 1095 379 2 123 155 99 86 49 140 58 66 14 8 104 118 132 47 29 . 80 89 110 78 139 245 622 262 Move 23223 | 61 454 2061 715 1911 748 905 230 301 339 1216 674 698 818 477 902 374 430 1213 1066 231 1297 1420 652 667 432 1037 1581 313 Hop . | . . . . . . . . . . . . . . . . . . . . . . . . . . . . . Pick Up 314 | 7 20 23 19 32 16 8 18 15 . 8 . 3 1 . 6 1 2 . 1 1 . 12 10 17 6 37 29 22 Fast Attach 125 | 7 1 . 3 . 3 . 3 3 1 . . . . 2 7 . . . 2 5 . 3 2 5 17 14 29 18 Attach 146 | . . 5 . . 5 . 2 5 3 2 . 1 1 . . . 2 . . . . 4 4 7 1 42 24 38 Detach 56 | . . . . . 1 . . . 4 . . . . . 1 . . . . . . 1 2 3 1 18 12 13 Swap 471 | 1 10 43 4 3 5 19 9 . 2 21 7 26 10 2 14 14 12 10 8 1 8 28 21 28 33 58 68 6 Drop 328 | . 6 39 24 16 10 10 29 16 2 5 . 2 1 2 14 1 1 . 2 5 . 10 13 14 23 32 38 13 Fire 1482 | 25 78 66 9 . . 4 1 . . 6 11 2 . . 7 . . 2 . . . 28 43 100 83 315 450 252 Melee 257 | . . . . . 27 21 4 13 17 26 31 20 13 3 2 12 25 7 4 1 17 14 . . . . . . Ram 1 | . . . . . . . . . . . . . . . . . . . . . . . . . . . . 1 Kick 1 | . . . . . . . . . . . . . . . . . . . . . . . . . . . . 1 Crush . | . . . . . . . . . . . . . . . . . . . . . . . . . . . . . Escape Stasis 25 | . . . . . . 16 . . . . . . . . . . . . . . . . . . . 1 3 5 Rewire 231 | . . . . . 4 174 . . . . . . . . 48 . . . . . . 4 1 . . . . . Trap . | . . . . . . . . . . . . . . . . . . . . . . . . . . . . . Miscellaneous 101 | . . . . . 8 21 11 4 1 1 3 2 . . 9 3 2 1 1 . 1 12 19 2 . . . . Route ------- -11/Scrapyard -10/Materials (discovered 3 exits: [*Mat x2] / *Sub) -10/Subcaves (discovered 3 exits: [*Mat x2] / *Rec) -9/Recycling -9/Scraptown -6/Factory (discovered 2 exits: Fac / *Ext) -6/Extension (discovered 3 exits: *Fac x2 / *Cet) -6/Cetus (discovered 2 exits: *Fac / *Arc) -6/Archives (discovered 3 exits: *Fac / *Hub x2) -6/Hub_04(d) -5/Factory (discovered 2 exits: *Fac x2) -5/Waste -5/Factory (discovered 3 exits: *Fac / *Upp x2) -5/Upper Caves -5/Upper Caves (discovered 2 exits: *Fac / *War) -5/Warlord -4/Proximity Caves -4/Factory (discovered 2 exits: *Res / *Upp) -4/Upper Caves -4/Upper Caves (discovered 2 exits: *Res / *Zhi) -4/Zhirov -3/Proximity Caves -3/Research (discovered 5 exits: *Res x3 / *Arm / *Qua) -3/Quarantine -2/Research (discovered 3 exits: *Acc x2 / *Tes) -2/Testing (discovered 2 exits: [*Sec] / *Frg) -2/Protoforge -1/Access -1/Command History --------- Turn | Location | Event 17 | -11/Scrapyard | Discovered new exit (range 15) 180 | -11/Scrapyard | Entered Materials 317 | -10/Materials | Build established: Mutant 713 | -10/Materials | Discovered new exit (range 6) 1302 | -10/Materials | Discovered new exit (range 7) 1305 | -10/Materials | Discovered new exit (range 16) 1566 | -10/Materials | Entered Subcaves 1567 | -10/Subcaves | Approached by a straggling Scientist 1892 | -10/Subcaves | Disturbed a concealed Subdweller 3045 | -10/Subcaves | Shifting Twisted Machinery released Sub. Machine Gun 3142 | -10/Subcaves | Discovered new exit (range 5) 3182 | -10/Subcaves | Shifting Twisted Machinery released Battle Rifle 3498 | -10/Subcaves | A swath of the cavern ceiling suddenly collapsed 4348 | -10/Subcaves | Visited 4L-MR0's lab 4366 | -10/Subcaves | Found Prototype Energy Cannon 4373 | -10/Subcaves | Found Prototype Special Melee Weapon 4557 | -10/Subcaves | Shifting Twisted Machinery released Sub. Optics 4557 | -10/Subcaves | Shifting Twisted Machinery released Battle Rifle 4768 | -10/Subcaves | A swath of the cavern ceiling suddenly collapsed 5693 | -10/Subcaves | Core integrity fell below 50% 5733 | -10/Subcaves | Lost 3 parts (1p2n) 5778 | -10/Subcaves | Discovered new exit (range 10) 5811 | -10/Subcaves | Learned Materials terminal intel 5836 | -10/Subcaves | Visited Clippyterm 5840 | -10/Subcaves | Learned Research security intel 5840 | -10/Subcaves | Identified exit to Recycling 6346 | -10/Subcaves | Found SUBCON Basin 6804 | -10/Subcaves | Shifting Twisted Machinery released Slug Cannon 6808 | -10/Subcaves | Shifting Twisted Machinery released Flamer 6834 | -10/Subcaves | Entered Recycling 6888 | -9/Recycling | Core integrity fell below 20% 7184 | -9/Recycling | Build established: Scavenger-Mutant 8380 | -9/Recycling | Scanned before Scraplab entrance 8425 | -9/Recycling | Entered Scraplab 8543 | -9/Recycling | Found SUBCON Basin 8770 | -9/Recycling | Found SUBCON Basin 9274 | -9/Recycling | Discovered new exit (range 4) 9575 | -9/Recycling | Entered Scraptown 10013 | -9/Scraptown | Heard Great Nut preacher, LISTEN AND RECITE! 10197 | -9/Scraptown | Scanned Subdweller tech in exchange for log data 10204 | -9/Scraptown | Learned Factory emergency access door positions 10206 | -9/Scraptown | Learned 12 Factory zone layouts 10296 | -9/Scraptown | Visited CPS Storage 10338 | -9/Scraptown | Visited Cyclists 10372 | -9/Scraptown | Visited Symbiants 10403 | -9/Scraptown | Visited Shadow of the Wyrm 10424 | -9/Scraptown | Visited Assassins FH 10454 | -9/Scraptown | Visited Bundlers 10636 | -9/Scraptown | Visited UFD Registry 10636 | -9/Scraptown | Registered with UFD as "Slugshaft" 10708 | -9/Scraptown | Visited Junk Cannon Lab 10754 | -9/Scraptown | Visited Chapter 10 10800 | -9/Scraptown | Visited Abandonware Association 10825 | -9/Scraptown | Learned abandonware demo "SHUTEYE.EXE" 10825 | -9/Scraptown | Learned abandonware demo "KABOOM.EXE" 10907 | -9/Scraptown | Visited Infowarlord's Domain 10926 | -9/Scraptown | Visited Sword Containment 10962 | -9/Scraptown | Visited DA-N13 Charitable Foundation 10981 | -9/Scraptown | Found DCF Scrap (29 items) 11016 | -9/Scraptown | Visited Science Guys 11054 | -9/Scraptown | Visited Science Testing Area 11084 | -9/Scraptown | Visited Scrap Suit Storage 11113 | -9/Scraptown | Visited Derelict Rescue Squad 11422 | -9/Scraptown | Found Prototype Slashing Weapon 11748 | -9/Scraptown | Delivered Scrap Shield to a Scientist 11988 | -9/Scraptown | Build established: Mutant 12013 | -9/Scraptown | Entered Cyclist Reading Room 12544 | -9/Scraptown | Found Prototype Special Weapon 12738 | -9/Scraptown | Found Exp. Sensor Array 12863 | -9/Scraptown | Discovered new exit (range 5) 12949 | -9/Scraptown | Met Optimus 12949 | -9/Scraptown | Accepted into 0bPrime 13026 | -9/Scraptown | Entered Factory 13026 | -6/Factory | Evolved 8 slots: Propulsion x2, Utility x2, Weapon x4 13027 | -6/Factory | Identified exit to Factory 13027 | -6/Factory | Identified 1B-0RG's Assimilator 13034 | -6/Factory | Identified Companion Sword 13145 | -6/Factory | Assimilating Engineer 5a into Collective. 13152 | -6/Factory | Assimilating Engineer 5b into Collective. 13164 | -6/Factory | Assimilating Engineer 5c into Collective. 13205 | -6/Factory | Assimilating Conveyor 5a into Collective. 13319 | -6/Factory | Build established: Derelict-Mutant 13471 | -6/Factory | Assimilating Conveyor 5b into Collective. 13579 | -6/Factory | Lost 3 allies 13661 | -6/Factory | Assimilating Smith 5a into Collective. 13739 | -6/Factory | Repaired Arm. Wheel 13859 | -6/Factory | Assimilating Hacker 5a into Collective. 13969 | -6/Factory | Central database locked down 13993 | -6/Factory | Discovered new exit (range 16) 14081 | -6/Factory | Loaded intel: 8 recycling unit locations 14189 | -6/Factory | Assimilating Guardian 5a into Collective. 14251 | -6/Factory | Build established: Assassin 14263 | -6/Factory | Identified exit to Extension 14274 | -6/Factory | Entered Extension 14274 | -6/Extension | Accompanied by 4 allies 14332 | -6/Extension | Rescued a captive Derelict 14616 | -6/Extension | Rescued a captive Derelict 14657 | -6/Extension | Rescued a captive Derelict 14659 | -6/Extension | Rescued a captive Derelict 14659 | -6/Extension | Assimilating E0-OHR(g) into Collective. 14668 | -6/Extension | Assimilating 1A-HPE(l) into Collective. 15036 | -6/Extension | Assimilating J9-UYL(l) into Collective. 15174 | -6/Extension | Disrupted transfer network 15216 | -6/Extension | Spotted B-75 Beast 15229 | -6/Extension | Allies destroyed B-75 Beast 15247 | -6/Extension | Assimilating Conveyor 5c into Collective. 15253 | -6/Extension | Discovered exit to Factory (range 17) 15257 | -6/Extension | Spotted B-75 Beast 15260 | -6/Extension | Assimilating Processor 5a into Collective. 15270 | -6/Extension | Allies destroyed B-75 Beast 15288 | -6/Extension | Assimilating Veteran 5a into Collective. 15302 | -6/Extension | Lost 7 allies 15339 | -6/Extension | Build established: Mutant 15368 | -6/Extension | Assimilating Soldier 5a into Collective. 15396 | -6/Extension | Assimilating Guardian 5b into Collective. 15401 | -6/Extension | Assimilating Guardian 5c into Collective. 15427 | -6/Extension | Lost 4 allies 15450 | -6/Extension | Assimilating Slayer 5a into Collective. 15498 | -6/Extension | Rescued a captive Derelict 15500 | -6/Extension | Rescued a captive Derelict 15553 | -6/Extension | Assimilating SM-O7O(b) into Collective. 15638 | -6/Extension | Rescued A7 15666 | -6/Extension | Assimilating Technician 5a into Collective. 15685 | -6/Extension | Assimilating GO-TAN(g) into Collective. 15831 | -6/Extension | Build established: Commander-Mutant 15888 | -6/Extension | Discovered exit to Factory (range 10) 15890 | -6/Extension | Discovered new exit (range 6) 15897 | -6/Extension | Identified exit to Cetus 15976 | -6/Extension | Entered Cetus 15976 | -6/Cetus | Accompanied by 16 allies (A7) 15981 | -6/Cetus | Acquired a Cetus Manufacturing Module code from A7 16005 | -6/Cetus | Spotted Cetus Guard 16005 | -6/Cetus | Spotted Cetus Guard 16008 | -6/Cetus | Spotted Cetus Guard 16009 | -6/Cetus | Spotted Cetus Guard 16016 | -6/Cetus | Attached CPS modules to Cetus Guard. 16026 | -6/Cetus | Allies destroyed Cetus Guard 16032 | -6/Cetus | Allies destroyed Cetus Guard 16036 | -6/Cetus | Allies destroyed Cetus Guard 16041 | -6/Cetus | Allies destroyed Cetus Guard 16063 | -6/Cetus | Lost 5 allies 16155 | -6/Cetus | Started Cetus Manufacturing Module 16180 | -6/Cetus | Manufactured an Enhanced Grunt 16200 | -6/Cetus | Discovered new exit (range 25) 16205 | -6/Cetus | Manufactured an Enhanced Grunt 16217 | -6/Cetus | Escorted A7 to Cetus Mainframe 16230 | -6/Cetus | Manufactured an Enhanced Grunt 16255 | -6/Cetus | Manufactured an Enhanced Grunt 16280 | -6/Cetus | Manufactured an Enhanced Grunt 16285 | -6/Cetus | Assimilating Enhanced Grunt into Collective. 16341 | -6/Cetus | Spotted Cetus Guard 16341 | -6/Cetus | Spotted Cetus Guard 16343 | -6/Cetus | Spotted Cetus Guard 16344 | -6/Cetus | Spotted Cetus Guard 16349 | -6/Cetus | Allies destroyed Cetus Guard 16363 | -6/Cetus | Allies destroyed Cetus Guard 16364 | -6/Cetus | Allies destroyed Cetus Guard 16369 | -6/Cetus | Discovered exit to Factory (range 18) 16395 | -6/Cetus | Met Revision 17 16509 | -6/Cetus | Identified exit to Archives 16536 | -6/Cetus | Entered Archives 16536 | -6/Archives | Accompanied by 12 allies (A7) 16541 | -6/Archives | Received a hacking code to weaken MAIN.C 16586 | -6/Archives | Discovered new exit (range 23) 16632 | -6/Archives | Assimilating Enhanced Grunt into Collective. 16717 | -6/Archives | Discovered exit to Factory (range 14) 16780 | -6/Archives | Discovered new exit (range 15) 16887 | -6/Archives | Build established: Scavenger-Mutant 16973 | -6/Archives | Assimilating Enhanced Grunt into Collective. 17241 | -6/Archives | System corruption reached 10% 17408 | -6/Archives | Identified exit to Hub_04(d) 17421 | -6/Archives | Entered Hub_04(d) 17421 | -6/Hub_04(d) | Accompanied by 8 allies 17760 | -6/Hub_04(d) | Garrison activated, responded to threat 17805 | -6/Hub_04(d) | Assimilating Enhanced Grunt into Collective. 17834 | -6/Hub_04(d) | Build established: Mutant 18096 | -6/Hub_04(d) | Discovered exit to Factory (range 3) 18107 | -6/Hub_04(d) | Entered Factory 18107 | -5/Factory | Accompanied by 8 allies 18107 | -5/Factory | Evolved 2 slots: Propulsion x2 18400 | -5/Factory | Build established: Scavenger-Assassin 18546 | -5/Factory | Identified Powered Cannon 18616 | -5/Factory | Discovered new exit (range 16) 19859 | -5/Factory | Discovered new exit (range 15) 19894 | -5/Factory | Identified exit to Factory 19907 | -5/Factory | First assault squad dispatched 20106 | -5/Factory | Assimilating Fighter 6a into Collective. 20313 | -5/Factory | Sucked down chute 20313 | -5/Factory | Entered Waste 20314 | -5/Waste | Met a frightened Derelict 20332 | -5/Waste | Assimilating 90-UOP(g) into Collective. 20377 | -5/Waste | Build established: Scavenger-Mutant 20381 | -5/Waste | Spotted C-40 Crusher 20390 | -5/Waste | Allies destroyed C-40 Crusher 20443 | -5/Waste | 5 allies followed down the chute 20470 | -5/Waste | Spotted C-40 Crusher 20474 | -5/Waste | Allies destroyed C-40 Crusher 20480 | -5/Waste | Spotted C-40 Crusher 20488 | -5/Waste | Spotted C-40 Crusher 20488 | -5/Waste | Allies destroyed C-40 Crusher 20494 | -5/Waste | Allies destroyed C-40 Crusher 20588 | -5/Waste | Spotted C-40 Crusher 20594 | -5/Waste | Allies destroyed C-40 Crusher 20608 | -5/Waste | Spotted C-40 Crusher 20620 | -5/Waste | Allies destroyed C-40 Crusher 20703 | -5/Waste | Warlord forces began an assault 20840 | -5/Waste | Murdered 7 allies 20941 | -5/Waste | Assimilating 64-2FZ(g) into Collective. 21077 | -5/Waste | Discovered new exit (range 15) 21203 | -5/Waste | Murdered 5 allies 21362 | -5/Waste | Identified exit to Factory 21446 | -5/Waste | Assimilating Y2-OL2(g) into Collective. 21564 | -5/Waste | Entered Factory 21564 | -5/Factory | Accompanied by 10 allies 21584 | -5/Factory | Discovered exit to Factory (range 17) 21817 | -5/Factory | Repaired Centrium Heavy Treads? 21871 | -5/Factory | Build established: Scavenger-Assassin 22464 | -5/Factory | First assault squad dispatched 22508 | -5/Factory | Identified exit to Upper Caves 22849 | -5/Factory | Entered Upper Caves 22849 | -5/Upper Caves | Accompanied by 8 allies 22851 | -5/Upper Caves | UFD Scientist delivered a prototype 22857 | -5/Upper Caves | Found Prototype Protection 23055 | -5/Upper Caves | Spotted B-75 Beast 23063 | -5/Upper Caves | Allies destroyed B-75 Beast 23510 | -5/Upper Caves | Build established: Scavenger-Mutant 23983 | -5/Upper Caves | Build established: Scavenger-Assassin 24105 | -5/Upper Caves | Discovered new exit (range 12) 24135 | -5/Upper Caves | Attracted the attention of an 0b10 checkpoint 24205 | -5/Upper Caves | Identified exit to Upper Caves 24222 | -5/Upper Caves | Entered another Upper Caves area 24222 | -5/Upper Caves | Accompanied by 8 allies 24227 | -5/Upper Caves | Discovered exit to Factory (range 15) 24232 | -5/Upper Caves | Encountered a Warlord checkpoint 24905 | -5/Upper Caves | Discovered new exit (range 10) 25001 | -5/Upper Caves | Identified exit to Warlord 25008 | -5/Upper Caves | Entered Warlord 25008 | -5/Warlord | Accompanied by 7 allies 25044 | -5/Warlord | Assimilating R9-64E(m) into Collective. 25065 | -5/Warlord | Lost 3 allies 25105 | -5/Warlord | Lost 4 allies 25311 | -5/Warlord | Assimilating Slayer 6c into Collective. 25316 | -5/Warlord | Assimilating Slayer 6b into Collective. 25330 | -5/Warlord | Assimilating Slayer 6a into Collective. 25582 | -5/Warlord | Visited the Vortex Lab 25590 | -5/Warlord | Warlord's base attacked by MAIN.C 25595 | -5/Warlord | Found Prototype Energy Gun 25595 | -5/Warlord | Identified Vortex Rifle 25734 | -5/Warlord | Found Prototype Device 25734 | -5/Warlord | Identified Exp. Phase Shifter 25743 | -5/Warlord | Found Prototype Reactor 25751 | -5/Warlord | Found Prototype Processor 25751 | -5/Warlord | Identified Exp. Core Analyzer 25940 | -5/Warlord | Warlord forces counterattacked 26021 | -5/Warlord | Build established: Scavenger-Mutant 26044 | -5/Warlord | Lost 11 allies 26048 | -5/Warlord | Spotted Striker 26061 | -5/Warlord | Spotted Striker 26063 | -5/Warlord | P-70 Sage assimilated allied 7V-V3R(g) 26131 | -5/Warlord | Lost 22 allies 26237 | -5/Warlord | Rebuked by Warlord 26265 | -5/Warlord | Warlord base infiltrated, sounded retreat 26266 | -5/Warlord | Enhanced Grunt warped into view 26266 | -5/Warlord | Enhanced Grunt warped into view 26266 | -5/Warlord | Enhanced Grunt warped into view 26266 | -5/Warlord | Enhanced Demolisher warped into view 26266 | -5/Warlord | Enhanced Demolisher warped into view 26266 | -5/Warlord | Enhanced Demolisher warped into view 26450 | -5/Warlord | Lost 4 allies 26460 | -5/Warlord | Spotted Striker 26473 | -5/Warlord | Spotted Executioner 26475 | -5/Warlord | Spotted Striker 26498 | -5/Warlord | Spotted Executioner 26565 | -5/Warlord | Lost 6 allies 26566 | -5/Warlord | Spotted B-86 Titan 26596 | -5/Warlord | Assimilating Titan 6a into Collective. 26655 | -5/Warlord | Assimilating Soldier 6a into Collective. 26672 | -5/Warlord | Spotted Striker 26672 | -5/Warlord | Discovered new exit (range 10) 26683 | -5/Warlord | Identified exit to Proximity Caves 26689 | -5/Warlord | Spotted B-75 Beast 26692 | -5/Warlord | Spotted Executioner 26695 | -5/Warlord | Entered Proximity Caves 26695 | -4/Proximity Caves | Accompanied by 1 ally 26701 | -4/Proximity Caves | Assimilating FM-3IN(S) into Collective. 26727 | -4/Proximity Caves | Assimilating PU-QPP(S) into Collective. 27249 | -4/Proximity Caves | Discovered exit to Factory (range 11) 27473 | -4/Proximity Caves | Entered Factory 27473 | -4/Factory | Accompanied by 3 allies 27473 | -4/Factory | Evolved 2 slots: Power x1, Utility x1 27664 | -4/Factory | Discovered new exit (range 8) 27670 | -4/Factory | Identified exit to Upper Caves 27786 | -4/Factory | Build established: Scavenger-Assassin 27868 | -4/Factory | Assimilating Sage 7a into Collective. 27986 | -4/Factory | Discovered new exit (range 16) 28029 | -4/Factory | Loaded intel: 8 recycling unit locations 28029 | -4/Factory | Learned location of Protoforge (-2) 28181 | -4/Factory | Assimilating Conveyor 7a into Collective. 28384 | -4/Factory | Entered Upper Caves 28384 | -4/Upper Caves | Accompanied by 5 allies 28615 | -4/Upper Caves | Build established: Scavenger-Mutant 29641 | -4/Upper Caves | Assimilating 4O-IJO(c) into Collective. 30027 | -4/Upper Caves | Discovered new exit (range 12) 30073 | -4/Upper Caves | Identified exit to Upper Caves 30411 | -4/Upper Caves | Entered another Upper Caves area 30411 | -4/Upper Caves | Accompanied by 6 allies 30485 | -4/Upper Caves | Discovered new exit (range 4) 30488 | -4/Upper Caves | Identified exit to Research 31303 | -4/Upper Caves | Assimilating Cleanser 7a into Collective. 31423 | -4/Upper Caves | Learned location of 1 exit from Research 31863 | -4/Upper Caves | Discovered new exit (range 15) 31935 | -4/Upper Caves | Identified exit to Zhirov 32036 | -4/Upper Caves | Learned location of Quarantine (-3) 32175 | -4/Upper Caves | Entered Zhirov 32175 | -4/Zhirov | Accompanied by 6 allies 32175 | -4/Zhirov | Discovered new exit (range 3) 32204 | -4/Zhirov | Met Zhirov 32242 | -4/Zhirov | Found Alien Artifact 32242 | -4/Zhirov | Identified Integrated Dissipator 32242 | -4/Zhirov | Installed Integrated Dissipator, increased core heat dissipation (+20) 32356 | -4/Zhirov | Found Alien Artifact 32490 | -4/Zhirov | Learned location of Command (-1) 32504 | -4/Zhirov | Zhirov requested help retrieving the SGEMP Prototype 32554 | -4/Zhirov | Identified exit to Proximity Caves 32560 | -4/Zhirov | Entered Proximity Caves 32560 | -3/Proximity Caves | Accompanied by 6 allies 33683 | -3/Proximity Caves | Spotted B-86 Titan 33688 | -3/Proximity Caves | Assimilating Titan 8a into Collective. 34452 | -3/Proximity Caves | Discovered exit to Research (range 11) 34773 | -3/Proximity Caves | Entered Research 34773 | -3/Research | Accompanied by 5 allies 34773 | -3/Research | Evolved 2 slots: Utility x2 34774 | -3/Research | Identified exit to Research 34973 | -3/Research | Revision forces began assault on 0b10 35020 | -3/Research | Met up with Revision 17++ 35063 | -3/Research | Build established: Scavenger-Assassin 35168 | -3/Research | Assimilating Warden 8a into Collective. 35289 | -3/Research | Discovered new exit (range 16) 35352 | -3/Research | Assimilating Processor 8a into Collective. 35366 | -3/Research | Identified exit to Armory 35473 | -3/Research | Research terminal network offline 35488 | -3/Research | Assimilating Swordsman 8a into Collective. 35541 | -3/Research | Lost 7 allies 35592 | -3/Research | Assimilating Serf 8a into Collective. 35602 | -3/Research | Assimilating Processor 8b into Collective. 35675 | -3/Research | Spotted Striker 35677 | -3/Research | Spotted Striker 35681 | -3/Research | Spotted Striker 35683 | -3/Research | Allies destroyed Striker 35689 | -3/Research | Discovered exit to Research (range 14) 35692 | -3/Research | Allies destroyed Striker 35694 | -3/Research | Destroyed Striker 35705 | -3/Research | Assimilating Serf 8b into Collective. 35716 | -3/Research | Lost 3 allies 35944 | -3/Research | Discovered exit to Research (range 16) 36326 | -3/Research | Allies destroyed Striker 36478 | -3/Research | Assimilating Veteran 8a into Collective. 36515 | -3/Research | Assimilating Veteran 8b into Collective. 36628 | -3/Research | Loaded intel: 5 recycling unit locations 36959 | -3/Research | Spotted Executioner 36960 | -3/Research | Spotted Striker 36972 | -3/Research | Allies destroyed Executioner 36974 | -3/Research | Spotted Striker 36996 | -3/Research | Assimilating Striker into Collective. 36996 | -3/Research | Spotted Executioner 37012 | -3/Research | Assimilating Striker into Collective. 37019 | -3/Research | Destroyed Executioner 37031 | -3/Research | Found Prototype Device 37031 | -3/Research | Identified Adv. Kinecellerator 37325 | -3/Research | Discovered new exit (range 13) 37327 | -3/Research | Spotted B-90 Cyclops 37342 | -3/Research | Identified exit to Quarantine 37344 | -3/Research | Entered Quarantine 37344 | -3/Quarantine | Accompanied by 1 ally 37612 | -3/Quarantine | Spotted Alpha 7 37725 | -3/Quarantine | Assimilating Master 8a into Collective. 37875 | -3/Quarantine | Scanned by Researcher 37876 | -3/Quarantine | Assimilating Analyst 8a into Collective. 38073 | -3/Quarantine | Build established: Infiltrator-Assassin 38107 | -3/Quarantine | Assimilating Administrator 8a into Collective. 38129 | -3/Quarantine | Assimilating Analyst 8b into Collective. 38230 | -3/Quarantine | Assimilating Analyst 8c into Collective. 38344 | -3/Quarantine | First assault squad dispatched 38408 | -3/Quarantine | Discovered exit to Research (range 16) 38491 | -3/Quarantine | Assimilating Swordsman 8b into Collective. 38498 | -3/Quarantine | Assimilating Veteran 8c into Collective. 38502 | -3/Quarantine | Assimilating Enforcer 8a into Collective. 38516 | -3/Quarantine | Assimilating Champion 8a into Collective. 38525 | -3/Quarantine | Assimilating Enforcer 8b into Collective. 38542 | -3/Quarantine | System corruption reached 10% 38543 | -3/Quarantine | Lost 7 allies 38560 | -3/Quarantine | Assimilating Electro 8a into Collective. 38597 | -3/Quarantine | Lost 3 allies 38603 | -3/Quarantine | Assimilating Artificer 8a into Collective. 38637 | -3/Quarantine | Assimilating Conveyor 8a into Collective. 38652 | -3/Quarantine | Found Corrupted Quantum Capacitor 38668 | -3/Quarantine | Assimilating Conveyor 8b into Collective. 38724 | -3/Quarantine | Found Alien Artifact 38730 | -3/Quarantine | Found Alien Artifact 38738 | -3/Quarantine | Found Alien Artifact 38774 | -3/Quarantine | Found Quantum Capacitor 38778 | -3/Quarantine | Entered Research 38778 | -2/Research | Accompanied by 3 allies 38778 | -2/Research | Evolved 2 slots: Power x1, Utility x1 39002 | -2/Research | Build established: Assassin 39127 | -2/Research | Assimilating Serf 9a into Collective. 39142 | -2/Research | Assimilating Serf 9b into Collective. 39170 | -2/Research | Attached Powered Cannon, gained temporary slot: Power 39174 | -2/Research | Identified Vortex Chain Reactor 39196 | -2/Research | Lost 3 allies 39211 | -2/Research | Found Quantum Capacitor 39216 | -2/Research | Found Prototype Device 39217 | -2/Research | Identified Exp. Shock Absorption System 39221 | -2/Research | Found Prototype Device 39223 | -2/Research | Identified Exp. Thermal Shield 39580 | -2/Research | Discovered new exit (range 12) 39648 | -2/Research | Lost 3 parts (1p1n1u) 39651 | -2/Research | Discovered new exit (range 15) 39657 | -2/Research | Identified exit to Access 39907 | -2/Research | Build established: Executioner 40174 | -2/Research | Discovered new exit (range 4) 40181 | -2/Research | Identified exit to Testing 40191 | -2/Research | Entered Testing 40270 | -2/Testing | Found Prototype Device 40270 | -2/Testing | Identified AEGIS Remote Shield 40426 | -2/Testing | Spotted PL-1UXH5NP0U9 40462 | -2/Testing | Destroyed PL-1UXH5NP0U9 40464 | -2/Testing | Found Prototype Device 40464 | -2/Testing | Identified Femtoactuators 40476 | -2/Testing | Found Exp. Core Analyzer 40496 | -2/Testing | Found Prototype Launcher 40496 | -2/Testing | Identified Point Singularity Launcher 40562 | -2/Testing | Build established: Scavenger-Executioner 40604 | -2/Testing | Found Prototype Energy Cannon 40604 | -2/Testing | Identified Potential Cannon 40825 | -2/Testing | Found Prototype Hackware 40856 | -2/Testing | Found Prototype Device 40856 | -2/Testing | Identified 2N-1CE's Frost Array 41048 | -2/Testing | Spotted Fortress 41051 | -2/Testing | Destroyed Fortress 41072 | -2/Testing | Found Vortex Chain Reactor 41194 | -2/Testing | Discovered new exit (range 6) 41194 | -2/Testing | Discovered new exit (range 7) 41201 | -2/Testing | Identified exit to Protoforge 41211 | -2/Testing | Entered Protoforge 41503 | -2/Protoforge | Discovered exit to Access (range 5) 41515 | -2/Protoforge | Identified Dimensional Node Initializer 41515 | -2/Protoforge | Initialized slip node 41547 | -2/Protoforge | Superfortress began startup sequence 41676 | -2/Protoforge | Found Prototype Device 41687 | -2/Protoforge | Found Prototype Energy Gun 41703 | -2/Protoforge | Found Prototype Energy Gun 41755 | -2/Protoforge | Additional patrols dispatched to research labs 41836 | -2/Protoforge | Spotted Immortal 41836 | -2/Protoforge | Spotted Immortal 41850 | -2/Protoforge | Destroyed Immortal 41855 | -2/Protoforge | Destroyed Immortal 41914 | -2/Protoforge | Spotted Decapitator 41914 | -2/Protoforge | Spotted Decapitator 41914 | -2/Protoforge | Spotted Decapitator 41914 | -2/Protoforge | Spotted Decapitator 41941 | -2/Protoforge | Identified Transdimensional Reconstructor (x2) 41941 | -2/Protoforge | Identified Cep. Variable Chargecaster (x2) 41941 | -2/Protoforge | Identified Cep. Antimissile System 41961 | -2/Protoforge | First assault squad dispatched 41985 | -2/Protoforge | Identified Ghost Barrier 42010 | -2/Protoforge | System corruption reached 10% 42029 | -2/Protoforge | Found Prototype Energy Cannon 42032 | -2/Protoforge | Found Prototype Energy Cannon 42036 | -2/Protoforge | Found Faulty Cep. Variable Chargecaster 42064 | -2/Protoforge | Build established: Scavenger-Tank 42075 | -2/Protoforge | Spotted Hotshot 42081 | -2/Protoforge | Destroyed Hotshot 42081 | -2/Protoforge | Spotted Hotshot 42093 | -2/Protoforge | Destroyed Hotshot 42188 | -2/Protoforge | Destroyed 19 combat bots 42217 | -2/Protoforge | Found Prototype Device 42293 | -2/Protoforge | Destroyed Decapitator 42297 | -2/Protoforge | Destroyed Decapitator 42302 | -2/Protoforge | Destroyed Decapitator 42305 | -2/Protoforge | Destroyed Decapitator 42369 | -2/Protoforge | Found Cep. NT7 Matterbank 42490 | -2/Protoforge | Found Cep. Zero-point Core 42528 | -2/Protoforge | Spotted V379-e 42531 | -2/Protoforge | Attached CPS modules to V379-e. 42540 | -2/Protoforge | Destroyed V379-e 42559 | -2/Protoforge | Found Prototype Device 42559 | -2/Protoforge | Identified Exp. EM Disruption Field 42605 | -2/Protoforge | Found Quantum Capacitor 42656 | -2/Protoforge | Destroyed 10 combat bots 42714 | -2/Protoforge | Identified Cep. Plasma Driver (x2) 42714 | -2/Protoforge | Forge Plexus network access discovered 42715 | -2/Protoforge | Identified Crosscalibrator 42774 | -2/Protoforge | Found Cep. Lightning Penetrator 42889 | -2/Protoforge | Found Cep. Antigrav Storage Unit 42960 | -2/Protoforge | Found Cep. Zero-point Core 43213 | -2/Protoforge | Spotted V395-a 43213 | -2/Protoforge | Spotted V471-g 43368 | -2/Protoforge | Spotted Decapitator 43368 | -2/Protoforge | Spotted Decapitator 43381 | -2/Protoforge | Destroyed Decapitator 43382 | -2/Protoforge | Spotted Decapitator 43382 | -2/Protoforge | Destroyed Decapitator 43385 | -2/Protoforge | Destroyed Decapitator 43454 | -2/Protoforge | Found Cep. RG22 Armor 43461 | -2/Protoforge | Found Faulty Exp. Remote Shield 43475 | -2/Protoforge | Spotted V259-t 43488 | -2/Protoforge | Destroyed V259-t 43509 | -2/Protoforge | Found Exp. Force Field 43539 | -2/Protoforge | Build established: Scavenger-Executioner 43551 | -2/Protoforge | Found Cep. RG22 Armor 43607 | -2/Protoforge | Warped through subspace to slip node 43632 | -2/Protoforge | Entered Access 43632 | -1/Access | Evolved 2 slots: Utility x2 43900 | -1/Access | Found Quantum Capacitor 44132 | -1/Access | First assault squad dispatched 44246 | -1/Access | Unchained authorized (DW-4LL) 44438 | -1/Access | Identified exit to Command 44667 | -1/Access | DW-4LL burst out of a wall 44673 | -1/Access | Destroyed DW-4LL 44719 | -1/Access | High security lockdown imminent 44740 | -1/Access | Destroyed 14 combat bots 44772 | -1/Access | Found Prototype Ballistic Gun 44772 | -1/Access | Identified DW-4LL's Megashotty 44775 | -1/Access | Found Prototype Device 44775 | -1/Access | Identified Exp. Weapon Cycler 44799 | -1/Access | High security lockdown engaged 44905 | -1/Access | Destroyed 9 combat bots 45140 | -1/Access | Destroyed 9 combat bots 45179 | -1/Access | Spotted Investigator 45182 | -1/Access | Destroyed Investigator 45187 | -1/Access | Spotted Investigator 45219 | -1/Access | Destroyed Investigator 45230 | -1/Access | Destroyed 21 combat bots 45257 | -1/Access | Spotted Striker 45265 | -1/Access | Destroyed Striker 45313 | -1/Access | Destroyed 17 combat bots 45337 | -1/Access | Destroyed Executioner 45371 | -1/Access | Destroyed Striker 45376 | -1/Access | Destroyed Striker 45461 | -1/Access | Found ID Mask 45464 | -1/Access | Build established: Scavenger-Tank 45502 | -1/Access | Spotted Executioner 45503 | -1/Access | Destroyed Striker 45503 | -1/Access | Destroyed Executioner 45505 | -1/Access | Destroyed Striker 45505 | -1/Access | Destroyed Executioner 45505 | -1/Access | Spotted Striker 45507 | -1/Access | Destroyed Striker 45508 | -1/Access | Destroyed Striker 45520 | -1/Access | Spotted Striker 45525 | -1/Access | Destroyed Striker 45543 | -1/Access | Spotted Striker 45543 | -1/Access | Spotted Striker 45550 | -1/Access | Spotted Striker 45555 | -1/Access | Spotted Investigator 45558 | -1/Access | Destroyed Striker 45561 | -1/Access | Destroyed Striker 45566 | -1/Access | Destroyed Striker 45573 | -1/Access | Spotted Striker 45573 | -1/Access | Spotted Executioner 45573 | -1/Access | Spotted Striker 45578 | -1/Access | Destroyed Executioner 45587 | -1/Access | Destroyed Investigator 45591 | -1/Access | Destroyed Striker 45594 | -1/Access | Destroyed Striker 45599 | -1/Access | Sterilization system engaged 45641 | -1/Access | Spotted Striker 45643 | -1/Access | Destroyed Striker 45653 | -1/Access | Lost 4 parts (3n1u) 45671 | -1/Access | Destroyed 48 combat bots 45728 | -1/Access | Found Prototype Launcher 45737 | -1/Access | Found Prototype Launcher 45742 | -1/Access | Spotted Executioner 45748 | -1/Access | Destroyed Executioner 45753 | -1/Access | Spotted Striker 45758 | -1/Access | Destroyed Striker 45769 | -1/Access | Spotted Striker 45770 | -1/Access | Spotted Striker 45776 | -1/Access | System corruption reached 10% 45788 | -1/Access | Destroyed Striker 45819 | -1/Access | Destroyed 12 combat bots 45830 | -1/Access | Destroyed Striker 45899 | -1/Access | Ambient heat levels rising (+10) 45924 | -1/Access | Identified Containment Facilitator (x2) 46049 | -1/Access | Ambient heat levels rising (+10) 46051 | -1/Access | Build established: Mutant 46118 | -1/Access | Spotted B-99 Colossus 46153 | -1/Access | Destroyed B-99 Colossus 46185 | -1/Access | Found Prototype Ballistic Gun 46185 | -1/Access | Identified Multirail 46199 | -1/Access | Ambient heat levels rising (+10) 46319 | -1/Access | Destroyed 8 combat bots 46349 | -1/Access | Ambient heat levels rising (+10) 46499 | -1/Access | Ambient heat levels rising (+10) 46505 | -1/Access | Build established: Scavenger-Mutant 46649 | -1/Access | Ambient heat levels rising (+10) 46799 | -1/Access | Ambient heat levels rising (+10) 46949 | -1/Access | Ambient heat levels rising (+10) 47030 | -1/Access | Energy Cycler disabled 47099 | -1/Access | Ambient heat levels rising (+10) 47233 | -1/Access | Spotted B-99 Colossus 47249 | -1/Access | Ambient heat levels rising (+10) 47372 | -1/Access | Build established: Scavenger-Tank 47399 | -1/Access | Ambient heat levels rising (+10) 47549 | -1/Access | Ambient heat levels rising (+10) 47554 | -1/Access | Entered Command 47577 | -1/Command | Spotted B-99 Colossus 47608 | -1/Command | Destroyed B-99 Colossus 47640 | -1/Command | Found Multirail 47804 | -1/Command | First assault squad dispatched 47900 | -1/Command | High security lockdown imminent 47927 | -1/Command | Destroyed 9 combat bots 47933 | -1/Command | Found Prototype Launcher 47933 | -1/Command | Identified Ragnarok Missile Launcher 47980 | -1/Command | High security lockdown engaged 48080 | -1/Command | Spotted Executioner 48084 | -1/Command | Destroyed Executioner 48111 | -1/Command | Destroyed 16 combat bots 48147 | -1/Command | Spotted Executioner 48154 | -1/Command | Spotted Investigator 48155 | -1/Command | Destroyed Investigator 48165 | -1/Command | Destroyed Executioner 48193 | -1/Command | Destroyed 17 combat bots 48200 | -1/Command | Lost 3 parts (1n2w) 48305 | -1/Command | Spotted Striker 48305 | -1/Command | Spotted Striker 48309 | -1/Command | Spotted Executioner 48311 | -1/Command | Destroyed Executioner 48316 | -1/Command | Destroyed Striker 48344 | -1/Command | Destroyed 23 combat bots 48450 | -1/Command | Build established: Scavenger-Mutant 48503 | -1/Command | Spotted Striker 48503 | -1/Command | Spotted Striker 48504 | -1/Command | Destroyed Striker 48505 | -1/Command | Destroyed Striker 48506 | -1/Command | Destroyed Executioner 48519 | -1/Command | Spotted Executioner 48519 | -1/Command | Spotted Striker 48531 | -1/Command | Destroyed Executioner 48537 | -1/Command | Destroyed Striker 48571 | -1/Command | Destroyed 9 combat bots 48598 | -1/Command | Spotted Striker 48600 | -1/Command | Spotted Striker 48600 | -1/Command | Spotted Executioner 48609 | -1/Command | Spotted Striker 48611 | -1/Command | Destroyed Striker 48613 | -1/Command | Destroyed Striker 48616 | -1/Command | Destroyed Executioner 48637 | -1/Command | Destroyed 17 combat bots 48639 | -1/Command | Core integrity fell below 50% 48646 | -1/Command | Destroyed Striker 48689 | -1/Command | Lost 6 parts (3p2n1u) 48752 | -1/Command | Found Exp. Core Analyzer 48849 | -1/Command | Build established: Scavenger-Tank 48858 | -1/Command | Spotted Striker 48870 | -1/Command | Spotted Executioner 48870 | -1/Command | Spotted Striker 48870 | -1/Command | Spotted Striker 48873 | -1/Command | Destroyed Executioner 48873 | -1/Command | Spotted Executioner 48873 | -1/Command | Spotted Striker 48873 | -1/Command | Spotted Executioner 48873 | -1/Command | Spotted Striker 48873 | -1/Command | Spotted Striker 48873 | -1/Command | Spotted Executioner 48874 | -1/Command | Spotted Striker 48874 | -1/Command | Spotted Striker 48886 | -1/Command | System corruption reached 30% 48889 | -1/Command | Destroyed Striker 48893 | -1/Command | Crushed by falling debris 48898 | -1/Command | Destroyed Striker 48899 | -1/Command | Destroyed Striker 48902 | -1/Command | Destroyed Striker 48915 | -1/Command | Destroyed Striker 48917 | -1/Command | Crushed by falling debris 48917 | -1/Command | Destroyed Striker 48921 | -1/Command | Crushed by falling debris 48924 | -1/Command | Crushed by falling debris 48924 | -1/Command | Core integrity fell below 20% 48925 | -1/Command | Crushed by falling debris 48927 | -1/Command | Crushed by falling debris 48928 | -1/Command | Crushed by falling debris 48934 | -1/Command | Crushed by falling debris 48941 | -1/Command | Destroyed by P-80 Master with Gamma Rifle Last Messages --------------- 48929_ P-80 Master resets P-80 Master, system corruption cleaned. 48930_ Plasma Slug penetrates Earth. 48931_ Penetrated by Slug. 48931_ Slug penetrates G-73 Enforcer. 48931_ K-01 Serf collects debris. 48932_ 9OTAY=1H5#9IIS0DDWN1/G1DLS0SWM5O DZJB 48932_ The unstable cave ceiling collapses. 48932_ H-88 Terminator crushed by falling debris. 48934_ The unstable cave ceiling collapses. 48934_ Crushed by falling debris. 48936_ Slug penetrates Earth. 48936_ Penetrated by Slug. 48937_ The unstable cave ceiling collapses. 48937_ H-88 Terminator crushed by falling debris. 48940_ The unstable cave ceiling collapses. 48940_ P-80 Master crushed by falling debris. [Achievement: Superachiever] Map ----- +----------------------------------------------------+ | | | | | | | | | | | | | | | | | | | | | | | | | | | | | | | | | | | | | | | | | | | | | | | ??????????????????????# ?##??????????????????????? | | ?????????????????????## # ##?????????????????????? | | ?????????????????????# ##@ #?????????????????????? | | ????????????????????### #pg#?????????????????????? | | ?????????????????#####%#g#p#?????????????????????? | | ?????????????????# # ##%##?????????????????????? | | ????????????#########%"#%# #?????????????????????? | | ????????????# %%%% % #?????????????????????? | | ????????????# %!*==" #?????????????????????? | | ????????????# /=!!=*"##?????????????????????? | | ????????????# """ *%[/[[" #?????????????????????? | | ????????????# """" !/*%=!###?????????????????????? | | ????????????# %=" ==== "#??????????????????????? | | ???????????## "/ !* "#??????????????????????? | | ???????????# | / "#??????????????????????? | | ?????????## # == ! ##??????????????????????? | | ?????????# # %%= % #???###?????????????????? | | ?????????# *"%" %*[#???# #?????????????????? | | ???????### # " =["##?# ##????????????????? | | ???????# !!#%% *##""###""####"####????????? | | ???????# =* % % = !=% " ???????? | | ???##### T | %*% *! % % " ???????? | | ???# " # * %% """"""######## #????????? | | ???####"" =% !%"= " ?# #????????? | | ??# " # " % " # # #????????? | | ??# *%=?# " %%*!" # + #????????? | | ?#" ??#"%#""!= = %! # # #????????? | +----------------------------------------------------+ Best States ------------- Heat Dissipation 210 Coolant Potential 100 Energy Generation 85 Energy Capacity 2950 Matter Stores 550 Matter Capacity 550 Sight Range 16 Robot Scan Range 20 Terrain Scan Density 10 Jamming Range 16 EM Shielding 4 Armor Coverage 2100 Resistance: KI 30 Propulsion Shielding 33 Weapon Shielding 90 Weapon Cycling 30 Evasion (%) 40 Core Analysis 12 Recoil Reduction 6 Offensive Hacking 14 Defensive Hacking 20 Item Schematics ----------------- Multitool | -5/Factory | Scanalyzed Assault Drone Bay | -4/Zhirov | Free Exp. Heat Sink | -4/Zhirov | Free Exp. Optical Array | -4/Zhirov | Free Imp. Arc Thrower | -4/Zhirov | Free Proton Burst Cannon | -3/Quarantine | Archive Adv. Gravity Neutralizer | -3/Quarantine | Archive Hvy. Gatling Laser | -3/Quarantine | Archive Enh. Biometal Leg | -3/Quarantine | Archive Enh. Armored Medium Treads | -3/Quarantine | Archive Tactical Quantum Warhead | -3/Quarantine | Archive Robot Schematics ------------------ B-74 Champion | -3/Quarantine | Archive S-43 Plague | -3/Quarantine | Archive R-06 Scavenger | -3/Quarantine | Archive Fabricated ------------ Nothing Repaired ---------- Arm. Wheel | 67% | -6/Factory Centrium Heavy Treads | 57% | -5/Factory Studied --------- Imp. Titanium Leg | -6/Factory | Hacked Rocket Launcher | -5/Factory | Hacked Alien Tech Used ----------------- Integrated Dissipator Dimensional Node Initializer Transdimensional Reconstructor Achievements -------------- Fixer-Upper Superachiever Challenges ------------ None Game ------ Seed TowerMappingFlakker Manual? 0 Play Time 10:07:59 Cumulative 394.6 hours Start 2026.02.23 @ 16:30:56 End 2026.03.08 @ 20:27:10 Sessions 26 Manual Loads 0 Difficulty Rogue Special Mode None Game No. 108 Rogue 102 Adventurer 0 Explorer 6 Win Type - Total 26 Types 13/1/5/1/1/0/2/1/1/1 Lore% 90 Gallery% 77 Achievement% 75 Wizard Run 0 Options --------- Layout 1 ASCII 0 Keyboard 0 Movement Mouse Keybinds 0 Fullscreen 2 Font 24/Smallcaps Map View 50x35 Zoom Use 0% Tactical HUD 1 Map Filters NONE Filters NONE Steam 1 RUN: 9b076bd6-6bb0-45d7-8482-bfffe0652504